Workbook

Sheet FutInfo
A1: TRADEDATE | B1: TICKER | C1: EXPDATE | D1: CTDBOND | E1: BondPrice | F1: AI | G1: FutPrcie | H1: CF | I1: Yld | J1: Dur | K1: Bond_DVO1 | L1: FutDVO1 | M1: IM
A2: 2021-12-14 | B2: OFZ2-3.22 | C2: 2022-03-05 | D2: ОФЗ 26222 | E2: 96.26 | F2: 1.07 | G2: 9800 | H2: 0.9826 | I2: 8.74 | J2: 2.635864034 | K2: -0.23 | L2: -2.34 | M2: 470
A3: 2021-12-14 | B3: OFZ4-3.22 | C3: 2022-03-05 | D3: ОФЗ 26234 | E3: 87.61 | F3: 1.8 | G3: 10129 | H3: 0.8696 | I3: 8.72 | J3: 3.760349586 | K3: -0.26 | L3: -3.04 | M3: 588
A4: 2021-12-14 | B4: OFZ6-3.22 | C4: 2022-03-05 | D4: ОФЗ 26219 | E4: 96.997 | F4: 1.762 | G4: 10807 | H4: 0.8958 | I4: 8.7 | J4: 4.454119223 | K4: -0.36 | L4: -3.98 | M4: 736
A5: 2021-12-14 | B5: OF10-3.22 | C5: 2022-03-05 | D5: ОФЗ 26235 | E5: 84 | F5: 1.342 | G5: 9014 | H5: 0.9349 | I5: 8.62 | J5: 7.412557493 | K5: -0.54 | L5: -5.74 | M5: 705
A6: 2021-12-14 | B6: OF15-3.22 | C6: 2022-03-05 | D6: ОФЗ 26233 | E6: 81.75 | F6: 2.206 | G6: 9310 | H6: 0.8787 | I6: 8.56 | J6: 9.900990099 | K6: -0.66 | L6: -7.48 | M6: 1009

Sheet MD
A1: ISIN | B1: SHORTNAME | C1: FIRM_SHORT_NAME | D1: ADMITTEDQUOTE | E1: MARKETPRICE2 | F1: CLOSEPRICE | G1: PRICE | H1: YIELD | I1: DURATION | J1: MD | K1: DVO1 | L1: ACCINT | M1: ISSUERID | N1: SECURITYID | O1: BUYBACKDATE | P1: MATDATE | Q1: MATURITY | R1: FACEVALUE | S1: MARKETPRICE3 | T1: INN
A2: RU000A0ZZYF7 | B2: АС ФИН1Р1 | C2: "АС ФИНАНС" | D2: 10000 | E2: 10000 | F2: 10000 | G2: 10000 | H2: 833 | I2: 9616 | J2: 8876 | K2: -908 | L2: 2381 | M2: MC0461600000 | N2: RU000A0ZZYF7 | O2: 2022-11-27 | P2: 2023-11-22 | Q2: 2022-11-27 | R2: 100000 | S2: 10000 | T2: 6672144910*
A3: RU000A0JVUB7 | B3: ПропфинБО1 | C3: 01 Пропертиз | D3: 9700 | E3: 9881 | F3: 9700 | G3: 9700 | H3: 4828 | I3: 1150 | J3: 776 | K3: -79 | L3: 4986 | M3: MC0363000000 | N3: RU000A0JVUB7 | P3: 2024-09-27 | Q3: 2024-09-27 | R3: 100000 | S3: 9878 | T3: 7722696870*
A4: RU000A0JXRB9 | B4: ПропфнБ-П2 | C4: 01 Пропертиз | D4: 9700 | E4: 10153 | F4: 9700 | G4: 9700 | H4: 0 | I4: 47698 | J4: 47698 | L4: 0 | M4: MC0363000000 | N4: RU000A0JXRB9 | P4: 2024-05-14 | Q4: 2024-05-14 | R4: 100000 | S4: 10168 | T4: 7722696870*
A5: RU000A0JXC40 | B5: ПропфнБ-П1 | C5: 01 Пропертиз | D5: 8150 | E5: 10305 | F5: 10000 | G5: 10000 | H5: 0 | I5: 63315 | J5: 63315 | L5: 0 | M5: MC0363000000 | N5: RU000A0JXC40 | P5: 2026-01-23 | Q5: 2026-01-23 | R5: 100000 | S5: 10372 | T5: 7722696870*
A6: XS2183144810 | B6: ALFA-23 EU | C6: Alfa Holding | D6: 10194 | E6: 0 | F6: 10194 | G6: 10194 | H6: 177 | I6: 21369 | J6: 20998 | K6: -2185 | L6: 2123 | M6: MC0395300000 | N6: XS2183144810 | P6: 2023-06-11 | Q6: 2023-06-11 | R6: 100000 | S6: 0 | T6: 0000003953*
A7: XS2045847295 | B7: BCSALORLV1 | C7: BCS SP Plc | D7: 9517 | E7: 8954 | F7: 9950 | G7: 9950 | H7: 0 | I7: 21753 | J7: 21753 | L7: 0 | M7: MC0410800000 | N7: XS2045847295 | P7: 2022-11-15 | Q7: 2022-11-15 | R7: 7500000 | S7: 9029 | T7: 0010035220*
A8: XS2049809341 | B8: BCS10/22-2 | C8: BCS SP Plc | D8: 10488 | E8: 10284 | F8: 10488 | G8: 10488 | H8: 0 | I8: 21808 | J8: 21808 | L8: 0 | M8: MC0410800000 | N8: XS2049809341 | P8: 2022-10-17 | Q8: 2022-10-17 | R8: 10000000 | S8: 10366 | T8: 0010035220*
A9: XS2020622887 | B9: BCS08/22 | C9: BCS SP Plc | D9: 9090 | E9: 10000 | F9: 9090 | G9: 9090 | H9: 0 | I9: 22438 | J9: 22438 | L9: 0 | M9: MC0410800000 | N9: XS2020622887 | P9: 2022-08-01 | Q9: 2022-08-01 | R9: 10000000 | S9: 10030 | T9: 0010035220*
A10: XS2123084639 | B10: BCSALORLV2 | C10: BCS SP Plc | D10: 10000 | E10: 10000 | F10: 10000 | G10: 10000 | H10: 0 | I10: 25698 | J10: 25698 | L10: 0 | M10: MC0410800000 | N10: XS2123084639 | P10: 2023-05-15 | Q10: 2023-05-15 | R10: 7500000 | S10: 10000 | T10: 0010035220*
A11: XS2139835636 | B11: BCSALORPT | C11: BCS SP Plc | D11: 10000 | E11: 0 | F11: 10000 | G11: 10000 | H11: 0 | I11: 26630 | J11: 26630 | L11: 0 | M11: MC0410800000 | N11: XS2139835636 | P11: 2023-06-15 | Q11: 2023-06-15 | R11: 10000000 | S11: 0 | T11: 0010035220*
A12: XS1985081444 | B12: BCS 05/24 | C12: BCS SP Plc | D12: 8900 | E12: 9117 | F12: 8900 | G12: 8900 | H12: 0 | I12: 27369 | J12: 27369 | L12: 0 | M12: MC0410800000 | N12: XS1985081444 | P12: 2024-05-24 | Q12: 2024-05-24 | R12: 10000000 | S12: 9165 | T12: 0010035220*
A13: XS1943597994 | B13: BCS12/23-3 | C13: BCS SP Plc | D13: 10000 | E13: 10082 | F13: 10000 | G13: 10000 | H13: 0 | I13: 28219 | J13: 28219 | L13: 0 | M13: MC0410800000 | N13: XS1943597994 | P13: 2023-12-20 | Q13: 2023-12-20 | R13: 10000000 | S13: 10072 | T13: 0010035220*
A14: XS2118272389 | B14: BCS06/23 | C14: BCS SP Plc | D14: 10399 | E14: 10223 | F14: 10399 | G14: 10399 | H14: 0 | I14: 29917 | J14: 29917 | L14: 0 | M14: MC0410800000 | N14: XS2118272389 | P14: 2023-06-13 | Q14: 2023-06-13 | R14: 10000000 | S14: 10244 | T14: 0010035220*
A15: XS2028880115 | B15: BCS06/24-7 | C15: BCS SP Plc | D15: 9943 | E15: 9988 | F15: 9920 | G15: 9920 | H15: 0 | I15: 31698 | J15: 31698 | L15: 0 | M15: MC0410800000 | N15: XS2028880115 | P15: 2024-06-30 | Q15: 2024-06-30 | R15: 10000000 | S15: 9988 | T15: 0010035220*
A16: XS2072914125 | B16: BCS12/24-4 | C16: BCS SP Plc | D16: 10150 | E16: 10005 | F16: 10150 | G16: 10150 | H16: 0 | I16: 33369 | J16: 33369 | L16: 0 | M16: MC0410800000 | N16: XS2072914125 | P16: 2024-12-30 | Q16: 2024-12-30 | R16: 10000000 | S16: 10344 | T16: 0010035220*
A17: XS2058684619 | B17: BCS12/24-2 | C17: BCS SP Plc | D17: 10140 | E17: 10065 | F17: 10140 | G17: 10140 | H17: 0 | I17: 33753 | J17: 33753 | L17: 0 | M17: MC0410800000 | N17: XS2058684619 | P17: 2024-12-30 | Q17: 2024-12-30 | R17: 10000000 | S17: 10062 | T17: 0010035220*
A18: XS2091672803 | B18: BCS12/24-D | C18: BCS SP Plc | D18: 10050 | E18: 9967 | F18: 10100 | G18: 10100 | H18: 0 | I18: 34520 | J18: 34520 | L18: 0 | M18: MC0410800000 | N18: XS2091672803 | P18: 2024-12-30 | Q18: 2024-12-30 | R18: 10000000 | S18: 10007 | T18: 0010035220*
A19: XS2091667043 | B19: BCS12/24-B | C19: BCS SP Plc | D19: 9700 | E19: 7943 | F19: 9400 | G19: 9400 | H19: 0 | I19: 35232 | J19: 35232 | L19: 0 | M19: MC0410800000 | N19: XS2091667043 | P19: 2024-12-30 | Q19: 2024-12-30 | R19: 10000000 | S19: 9511 | T19: 0010035220*
A20: XS2143253495 | B20: BCS06/25-4 | C20: BCS SP Plc | D20: 10040 | E20: 9973 | F20: 10050 | G20: 10050 | H20: 0 | I20: 38986 | J20: 38986 | L20: 0 | M20: MC0410800000 | N20: XS2143253495 | P20: 2025-06-30 | Q20: 2025-06-30 | R20: 10000000 | S20: 9973 | T20: 0010035220*
A21: XS2125163688 | B21: BCS06/25-2 | C21: BCS SP Plc | D21: 10498 | E21: 9999 | F21: 10000 | G21: 10000 | H21: 0 | I21: 39068 | J21: 39068 | L21: 0 | M21: MC0410800000 | N21: XS2125163688 | P21: 2025-06-26 | Q21: 2025-06-26 | R21: 10000000 | S21: 10019 | T21: 0010035220*
A22: XS2181436796 | B22: BCS06/25-5 | C22: BCS SP Plc | D22: 10410 | E22: 10410 | F22: 10410 | G22: 10410 | H22: 0 | I22: 39972 | J22: 39972 | L22: 0 | M22: MC0410800000 | N22: XS2181436796 | P22: 2025-06-30 | Q22: 2025-06-30 | R22: 10000000 | S22: 10410 | T22: 0010035220*
A23: XS2185963803 | B23: BCS10/25 | C23: BCS SP Plc | D23: 10000 | E23: 10000 | F23: 10000 | G23: 10000 | H23: 0 | I23: 53260 | J23: 53260 | L23: 0 | M23: MC0410800000 | N23: XS2185963803 | P23: 2025-10-15 | Q23: 2025-10-15 | R23: 10000000 | S23: 10000 | T23: 0010035220*
A24: XS1759801720 | B24: CBOM-23 | C24: CBOM Finance | D24: 10550 | E24: 10539 | F24: 10550 | G24: 10550 | H24: 290 | I24: 20575 | J24: 19995 | K24: -2144 | L24: 1757 | M24: MC0383800000 | N24: XS1759801720 | P24: 2023-02-14 | Q24: 2023-02-14 | R24: 100000 | S24: 10502 | T24: 0000425241*
A25: XS1951067039 | B25: CBOM-24 EU | C25: CBOM Finance | D25: 10599 | E25: 10599 | F25: 10599 | G25: 10599 | H25: 292 | I25: 27698 | J25: 26912 | K25: -2865 | L25: 466 | M25: MC0383800000 | N25: XS1951067039 | P25: 2024-02-20 | Q25: 2024-02-20 | R25: 100000 | S25: 10590 | T25: 0000425241*
A26: XS1964558339 | B26: CBOM-24 | C26: CBOM Finance | D26: 10937 | E26: 10979 | F26: 10937 | G26: 10937 | H26: 398 | I26: 29315 | J26: 28192 | K26: -3133 | L26: 1780 | M26: MC0383800000 | N26: XS1964558339 | P26: 2024-06-25 | Q26: 2024-06-25 | R26: 100000 | S26: 10977 | T26: 0000425241*
A27: XS2099763075 | B27: CBOM-25 | C27: CBOM Finance | D27: 10290 | E27: 10291 | F27: 10290 | G27: 10290 | H27: 385 | I27: 35506 | J27: 34190 | K27: -3543 | L27: 731 | M27: MC0383800000 | N27: XS2099763075 | P27: 2025-01-29 | Q27: 2025-01-29 | R27: 100000 | S27: 10299 | T27: 0000425241*
A28: XS1533915721 | B28: EVR-23 | C28: EVRAZ plc | D28: 10648 | E28: 10664 | F28: 10762 | G28: 10762 | H28: 215 | I28: 19123 | J28: 18720 | K28: -2016 | L28: 75 | M28: MC0471100000 | N28: XS1533915721 | P28: 2023-03-20 | Q28: 2023-03-20 | R28: 100000 | S28: 10663 | T28: 00007784342*
A29: XS1843443273 | B29: EVR-24 | C29: EVRAZ plc | D29: 10850 | E29: 10803 | F29: 10850 | G29: 10850 | H29: 229 | I29: 27808 | J29: 27185 | K29: -3018 | L29: 2523 | M29: MC0471100000 | N29: XS1843443273 | P29: 2024-04-02 | Q29: 2024-04-02 | R29: 100000 | S29: 10802 | T29: 00007784342*
A30: XS1961080501 | B30: EUCH-24 | C30: EuroChem Fin | D30: 11020 | E30: 11009 | F30: 11020 | G30: 11020 | H30: 220 | I30: 30027 | J30: 29381 | K30: -3277 | L30: 1344 | M30: MC0439700000 | N30: XS1961080501 | P30: 2024-03-13 | Q30: 2024-03-13 | R30: 100000 | S30: 11009 | T30: 0000004397*
A31: XS1713473608 | B31: GTLK-25 | C31: GTLK Eur Cap | D31: 11007 | E31: 11094 | F31: 10970 | G31: 10970 | H31: 326 | I31: 36109 | J31: 34969 | K31: -3927 | L31: 2611 | M31: MC0473500000 | N31: XS1713473608 | P31: 2025-04-17 | Q31: 2025-04-17 | R31: 100000 | S31: 11144 | T31: 0000004735*
A32: XS2010044381 | B32: GTLK-26 | C32: GTLK Eur Cap | D32: 10684 | E32: 10617 | F32: 10684 | G32: 10684 | H32: 339 | I32: 44164 | J32: 42716 | K32: -4585 | L32: 509 | M32: MC0473500000 | N32: XS2010044381 | P32: 2026-02-18 | Q32: 2026-02-18 | R32: 100000 | S32: 10610 | T32: 0000004735*
A33: XS2131995958 | B33: GTLK-27 | C33: GTLK Eur Cap | D33: 10260 | E33: 10255 | F33: 10260 | G33: 10260 | H33: 413 | I33: 52767 | J33: 50674 | K33: -5209 | L33: 194 | M33: MC0473500000 | N33: XS2131995958 | P33: 2027-03-10 | Q33: 2027-03-10 | R33: 100000 | S33: 10254 | T33: 0000004735*
A34: XS2249778247 | B34: GTLK-28 | C34: GTLK Eur Cap | D34: 10277 | E34: 10214 | F34: 10277 | G34: 10277 | H34: 431 | I34: 59671 | J34: 57205 | K34: -5901 | L34: 387 | M34: MC0473500000 | N34: XS2249778247 | P34: 2028-02-26 | Q34: 2028-02-26 | R34: 100000 | S34: 10214 | T34: 0000004735*
A35: XS1577961516 | B35: GTLK-24 | C35: GTLK Europe | D35: 10698 | E35: 10609 | F35: 10698 | G35: 10698 | H35: 278 | I35: 29424 | J35: 28628 | K35: -3109 | L35: 1637 | M35: MC0439000000 | N35: XS1577961516 | P35: 2024-05-31 | Q35: 2024-05-31 | R35: 100000 | S35: 10609 | T35: 0000004390*
A36: XS2157526315 | B36: GAZ-25 EU2 | C36: Gaz Fin Plc | D36: 10665 | E36: 10654 | F36: 10665 | G36: 10665 | H36: 134 | I36: 40767 | J36: 40228 | K36: -4368 | L36: 1940 | M36: MC0484600000 | N36: XS2157526315 | P36: 2025-04-15 | Q36: 2025-04-15 | R36: 100000 | S36: 10655 | T36: 0000004846*
A37: XS2196334671 | B37: GAZ-27_2 | C37: Gaz Fin Plc | D37: 9950 | E37: 9927 | F37: 10275 | G37: 10275 | H37: 307 | I37: 57178 | J37: 55474 | K37: -5739 | L37: 717 | M37: MC0484600000 | N37: XS2196334671 | P37: 2027-06-29 | Q37: 2027-06-29 | R37: 100000 | S37: 9927 | T37: 0000004846*
A38: XS2124187571 | B38: GAZ-30 | C38: Gaz Fin Plc | D38: 9663 | E38: 9624 | F38: 9663 | G38: 9663 | H38: 367 | I38: 77753 | J38: 75000 | K38: -7268 | L38: 271 | M38: MC0484600000 | N38: XS2124187571 | P38: 2030-02-25 | Q38: 2030-02-25 | R38: 100000 | S38: 9624 | T38: 0000004846*
A39: XS1514045886 | B39: LUK-26 | C39: Lukoil IFBV | D39: 11197 | E39: 11151 | F39: 40 | G39: 40 | H39: 242 | I39: 49479 | J39: 48310 | K39: -110 | L39: 1887 | M39: MC0384400000 | N39: XS1514045886 | P39: 2026-11-02 | Q39: 2026-11-02 | R39: 100000 | S39: 11151 | T39: 0000003844*
A40: XS1589324075 | B40: GMKN-23 | C40: MMC Finance | D40: 10439 | E40: 10413 | F40: 10439 | G40: 10439 | H40: 186 | I40: 19506 | J40: 19150 | K40: -2035 | L40: 1868 | M40: MC0384700000 | N40: XS1589324075 | O40: 2023-01-11 | P40: 2023-04-11 | Q40: 2023-01-11 | R40: 100000 | S40: 10413 | T40: 0000003847*
A41: XS2134628069 | B41: GMKN-25 | C41: MMC Finance | D41: 9983 | E41: 9988 | F41: 10001 | G41: 10001 | H41: 252 | I41: 42465 | J41: 41421 | K41: -4146 | L41: 99 | M41: MC0384700000 | N41: XS2134628069 | P41: 2025-09-11 | Q41: 2025-09-11 | R41: 100000 | S41: 9988 | T41: 0000003847*
A42: XS1843434959 | B42: MMK-24 | C42: MMK | D42: 10825 | E42: 10814 | F42: 10825 | G42: 10825 | H42: 191 | I42: 32356 | J42: 31749 | K42: -3505 | L42: 2163 | M42: MC0475100000 | N42: XS1843434959 | P42: 2024-06-13 | Q42: 2024-06-13 | R42: 100000 | S42: 10814 | T42: 0000004751*
A43: XS1752568144 | B43: PHOS-23 | C43: PhosAgro BFD | D43: 10500 | E43: 10470 | F43: 10500 | G43: 10500 | H43: 176 | I43: 22739 | J43: 22346 | K43: -2357 | L43: 516 | M43: MC0384900000 | N43: XS1752568144 | P43: 2023-04-24 | Q43: 2023-04-24 | R43: 100000 | S43: 10470 | T43: 0000003849*
A44: XS1533922933 | B44: PGIL-23 | C44: Polyus Fin | D44: 10640 | E44: 0 | F44: 20 | G44: 20 | H44: 171 | I44: 18000 | J44: 17697 | K44: -15 | L44: 700 | M44: MC0437300000 | N44: XS1533922933 | P44: 2023-02-07 | Q44: 2023-02-07 | R44: 100000 | S44: 10668 | T44: 0000004373*
A45: XS1843437036 | B45: RZD-27 EUR | C45: RZD Capital | D45: 10500 | E45: 0 | F45: 0 | G45: 10500 | H45: 133 | I45: 57452 | J45: 56697 | K45: -6057 | L45: 1841 | M45: MC0385000000 | N45: XS1843437036 | P45: 2027-05-23 | Q45: 2027-05-23 | R45: 100000 | S45: 10591 | T45: 0000003850*
A46: XS1433454243 | B46: SCF-23 | C46: SCF Capital | D46: 10601 | E46: 10655 | F46: 10601 | G46: 10601 | H46: 254 | I46: 21041 | J46: 20519 | K46: -2205 | L46: 1478 | M46: MC0397000000 | N46: XS1433454243 | P46: 2023-06-16 | Q46: 2023-06-16 | R46: 100000 | S46: 10644 | T46: 0000003970*
A47: XS2010044621 | B47: SIB-24 | C47: Sibur SecDAC | D47: 10412 | E47: 10464 | F47: 10412 | G47: 10412 | H47: 219 | I47: 33315 | J47: 32601 | K47: -3395 | L47: 19 | M47: MC0397100000 | N47: XS2010044621 | P47: 2024-09-23 | Q47: 2024-09-23 | R47: 100000 | S47: 10445 | T47: 0000003971*
A48: XS2010043656 | B48: SCB-30 | C48: SovComCap | D48: 10690 | E48: 10699 | F48: 10690 | G48: 10690 | H48: 697 | I48: 64712 | J48: 60495 | K48: -6692 | L48: 3733 | M48: MC0424200000 | N48: XS2010043656 | P48: 2030-04-07 | Q48: 2030-04-07 | R48: 100000 | S48: 10693 | T48: 0000004242*
A49: XS0893212398 | B49: VEB-23 EUR | C49: VEB Finance | D49: 10565 | E49: 10581 | F49: 10565 | G49: 10565 | H49: 100 | I49: 18739 | J49: 18554 | K49: -1966 | L49: 353 | M49: MC0383500000 | N49: XS0893212398 | P49: 2023-02-21 | Q49: 2023-02-21 | R49: 100000 | S49: 10581 | T49: 0000481529*
A50: XS0559915961 | B50: VEB FIN-25 | C50: VEB Finance | D50: 11775 | E50: 11853 | F50: 11775 | G50: 11775 | H50: 268 | I50: 40547 | J50: 39489 | K50: -4741 | L50: 2323 | M50: MC0383500000 | N50: XS0559915961 | P50: 2025-11-22 | Q50: 2025-11-22 | R50: 100000 | S50: 11863 | T50: 0000481529*
A51: RU000A0ZYC31 | B51: АвАгроБ1P1 | C51: АВАНГАРДАГРО | D51: 10015 | E51: 10050 | F51: 9928 | G51: 9928 | H51: 593 | I51: 7835 | J51: 7396 | K51: -742 | L51: 1151 | M51: MC0392800000 | N51: RU000A0ZYC31 | O51: 2022-09-29 | P51: 2027-09-23 | Q51: 2022-09-29 | R51: 100000 | S51: 10015 | T51: 5722033117*
A52: RU000A0ZYH02 | B52: АвАгроБ1P2 | C52: АВАНГАРДАГРО | D52: 10000 | E52: 10001 | F52: 10036 | G52: 10036 | H52: 614 | I52: 9397 | J52: 8853 | K52: -890 | L52: 214 | M52: MC0392800000 | N52: RU000A0ZYH02 | O52: 2022-11-22 | P52: 2027-11-16 | Q52: 2022-11-22 | R52: 100000 | S52: 10001 | T52: 5722033117*
A53: RU000A100733 | B53: АВТОБФ БП2 | C53: АВТОБАН-Фина | D53: 10010 | E53: 10010 | F53: 10010 | G53: 10010 | H53: 1076 | I53: 2794 | J53: 2523 | K53: -258 | L53: 2411 | M53: MC0411900000 | N53: RU000A100733 | P53: 2024-03-19 | Q53: 2024-03-19 | R53: 100000 | S53: 10010 | T53: 7708813750*
A54: RU000A0JXQ51 | B54: АВТОБФ БП1 | C54: АВТОБАН-Фина | D54: 10030 | E54: 9996 | F54: 10030 | G54: 10030 | H54: 671 | I54: 3643 | J54: 3414 | K54: -345 | L54: 1007 | M54: MC0411900000 | N54: RU000A0JXQ51 | O54: 2022-04-22 | P54: 2024-04-19 | Q54: 2022-04-22 | R54: 100000 | S54: 9996 | T54: 7708813750*
A55: RU000A0JUC19 | B55: АИЖ11А2/13 | C55: АИЖК 2011-1 | D55: 0 | E55: 0 | F55: 10000 | G55: 10000 | H55: 306 | I55: 191 | J55: 186 | K55: 0 | L55: 611 | M55: MC0342200000 | N55: RU000A0JUC19 | O55: 2021-12-22 | P55: 2046-06-22 | Q55: 2021-12-22 | R55: 4338 | S55: 0 | T55: 7725699639*
A56: RU000A0JS1B4 | B56: АИЖ11-1А2 | C56: АИЖК 2011-1 | D56: 10000 | E56: 10000 | F56: 10000 | G56: 10000 | H56: 304 | I56: 46904 | J56: 45520 | K56: -35 | L56: 264 | M56: MC0342200000 | N56: RU000A0JS1B4 | P56: 2044-02-15 | Q56: 2044-02-15 | R56: 510 | S56: 0 | T56: 7725699639*
A57: RU000A0JTD52 | B57: АИЖ11А2/12 | C57: АИЖК 2011-1 | D57: 10000 | E57: 10000 | F57: 10000 | G57: 10000 | H57: 303 | I57: 47205 | J57: 45817 | K57: -74 | L57: 311 | M57: MC0342200000 | N57: RU000A0JTD52 | O57: 2022-02-25 | P57: 2045-05-25 | Q57: 2022-02-25 | R57: 1313 | S57: 0 | T57: 7725699639*
A58: RU000A0JUJ87 | B58: АИЖК2014А3 | C58: АИЖК 2014-1 | D58: 9830 | E58: 0 | F58: 9830 | G58: 9830 | H58: 4788 | I58: 547 | J58: 370 | K58: -10 | L58: 1558 | M58: MC0373800000 | N58: RU000A0JUJ87 | O58: 2022-03-11 | P58: 2046-06-11 | Q58: 2022-03-11 | R58: 28597 | S58: 0 | T58: 7743901086*
A59: RU000A0JUJ61 | B59: АИЖК2014А2 | C59: АИЖК 2014-1 | D59: 10005 | E59: 9773 | F59: 10005 | G59: 10005 | H59: 845 | I59: 1260 | J59: 1162 | K59: -3 | L59: 35 | M59: MC0373800000 | N59: RU000A0JUJ61 | P59: 2046-06-11 | Q59: 2046-06-11 | R59: 3306 | S59: 0 | T59: 7743901086*
A60: RU000A0JUJ20 | B60: АИЖК2014А1 | C60: АИЖК 2014-1 | D60: 9854 | E60: 9854 | F60: 9930 | G60: 9930 | H60: 1025 | I60: 5041 | J60: 4572 | K60: -45 | L60: 194 | M60: MC0373800000 | N60: RU000A0JUJ20 | O60: 2016-06-11 | P60: 2046-06-11 | Q60: 2016-06-11 | R60: 9914 | S60: 0 | T60: 7743901086*
A61: RU000A101PC6 | B61: АЛРОСА Б07 | C61: АЛРОСА | D61: 9799 | E61: 9847 | F61: 9799 | G61: 9799 | H61: 646 | I61: 36931 | J61: 34690 | K61: -3417 | L61: 536 | M61: MC0083200000 | N61: RU000A101PC6 | O61: 2025-05-16 | P61: 2030-05-10 | Q61: 2025-05-16 | R61: 100000 | S61: 9845 | T61: 1433000147*
A62: RU000A101PG7 | B62: АЛРОСА Б03 | C62: АЛРОСА | D62: 9980 | E62: 10000 | F62: 10000 | G62: 10000 | H62: 593 | I62: 36986 | J62: 34915 | K62: -3510 | L62: 536 | M62: MC0083200000 | N62: RU000A101PG7 | O62: 2025-05-16 | P62: 2030-05-10 | Q62: 2025-05-16 | R62: 100000 | S62: 9986 | T62: 1433000147*
A63: RU000A101PD4 | B63: АЛРОСА Б05 | C63: АЛРОСА | D63: 10000 | E63: 9986 | F63: 10000 | G63: 10000 | H63: 588 | I63: 39287 | J63: 37105 | K63: -3722 | L63: 331 | M63: MC0083200000 | N63: RU000A101PD4 | O63: 2025-05-16 | P63: 2030-05-10 | Q63: 2025-05-16 | R63: 100000 | S63: 9986 | T63: 1433000147*
A64: RU000A101PF9 | B64: АЛРОСА Б04 | C64: АЛРОСА | D64: 10000 | E64: 9985 | F64: 10000 | G64: 10000 | H64: 588 | I64: 39315 | J64: 37131 | K64: -3724 | L64: 315 | M64: MC0083200000 | N64: RU000A101PF9 | O64: 2025-05-16 | P64: 2030-05-10 | Q64: 2025-05-16 | R64: 100000 | S64: 9985 | T64: 1433000147*
A65: RU000A101PB8 | B65: АЛРОСА Б06 | C65: АЛРОСА | D65: 10000 | E65: 10015 | F65: 10000 | G65: 10000 | H65: 588 | I65: 39315 | J65: 37131 | K65: -3724 | L65: 315 | M65: MC0083200000 | N65: RU000A101PB8 | O65: 2025-05-16 | P65: 2030-05-10 | Q65: 2025-05-16 | R65: 100000 | S65: 10012 | T65: 1433000147*
A66: RU000A0JTM36 | B66: Башнефть07 | C66: АНК Башнефть | D66: 10033 | E66: 10019 | F66: 10019 | G66: 10019 | H66: 489 | I66: 1452 | J66: 1384 | K66: -141 | L66: 2227 | M66: MC0304200000 | N66: RU000A0JTM36 | O66: 2022-08-02 | P66: 2023-01-31 | Q66: 2022-08-02 | R66: 100000 | S66: 10019 | T66: 0274051582*
A67: RU000A0JTM51 | B67: Башнефть09 | C67: АНК Башнефть | D67: 10038 | E67: 10019 | F67: 10038 | G67: 10038 | H67: 349 | I67: 1452 | J67: 1403 | K67: -143 | L67: 2227 | M67: MC0304200000 | N67: RU000A0JTM51 | O67: 2022-08-02 | P67: 2023-01-31 | Q67: 2022-08-02 | R67: 100000 | S67: 10019 | T67: 0274051582*
A68: RU000A0JS3U0 | B68: Башнефть04 | C68: АНК Башнефть | D68: 10171 | E68: 9800 | F68: 10171 | G68: 10171 | H68: 554 | I68: 11260 | J68: 10669 | K68: -1109 | L68: 2244 | M68: MC0304200000 | N68: RU000A0JS3U0 | P68: 2022-02-04 | Q68: 2022-02-04 | R68: 100000 | S68: 10978 | T68: 0274051582*
A69: RU000A0JUML5 | B69: БашнфтБО5 | C69: АНК Башнефть | D69: 10219 | E69: 9625 | F69: 10219 | G69: 10219 | H69: 972 | I69: 18301 | J69: 16680 | K69: -1780 | L69: 4573 | M69: MC0304200000 | N69: RU000A0JUML5 | O69: 2022-05-16 | P69: 2024-05-13 | Q69: 2022-05-16 | R69: 100000 | S69: 0 | T69: 0274051582*
A70: RU000A0JTM44 | B70: Башнефть08 | C70: АНК Башнефть | D70: 10446 | E70: 10450 | F70: 10446 | G70: 10446 | H70: 553 | I70: 19698 | J70: 18666 | K70: -2000 | L70: 2700 | M70: MC0304200000 | N70: RU000A0JTM44 | P70: 2023-01-31 | Q70: 2023-01-31 | R70: 100000 | S70: 10499 | T70: 0274051582*
A71: RU000A0JTM28 | B71: Башнефть06 | C71: АНК Башнефть | D71: 10463 | E71: 10447 | F71: 10463 | G71: 10463 | H71: 545 | I71: 19698 | J71: 18680 | K71: -2004 | L71: 2700 | M71: MC0304200000 | N71: RU000A0JTM28 | P71: 2023-01-31 | Q71: 2023-01-31 | R71: 100000 | S71: 10443 | T71: 0274051582*
A72: RU000A0JX2X9 | B72: БашнфБ1P2R | C72: АНК Башнефть | D72: 10980 | E72: 10625 | F72: 10980 | G72: 10980 | H72: 676 | I72: 34273 | J72: 32103 | K72: -3529 | L72: 130 | M72: MC0304200000 | N72: RU000A0JX2X9 | P72: 2023-12-14 | Q72: 2023-12-14 | R72: 100000 | S72: 10625 | T72: 0274051582*
A73: RU000A0JWGC2 | B73: БашнфтБО6 | C73: АНК Башнефть | D73: 10830 | E73: 10828 | F73: 10830 | G73: 10830 | H73: 876 | I73: 36027 | J73: 33125 | K73: -3624 | L73: 1105 | M73: MC0304200000 | N73: RU000A0JWGC2 | P73: 2026-04-29 | Q73: 2026-04-29 | R73: 100000 | S73: 10828 | T73: 0274051582*
A74: RU000A0JWGD0 | B74: БашнфтБО8 | C74: АНК Башнефть | D74: 11002 | E74: 11245 | F74: 11002 | G74: 11002 | H74: 829 | I74: 36164 | J74: 33395 | K74: -3711 | L74: 1105 | M74: MC0304200000 | N74: RU000A0JWGD0 | O74: 2025-04-30 | P74: 2026-04-29 | Q74: 2025-04-30 | R74: 100000 | S74: 11181 | T74: 0274051582*
A75: RU000A0JWX04 | B75: БашнфтБО9 | C75: АНК Башнефть | D75: 10680 | E75: 10435 | F75: 10680 | G75: 10680 | H75: 760 | I75: 37369 | J75: 34730 | K75: -3728 | L75: 561 | M75: MC0304200000 | N75: RU000A0JWX04 | O75: 2022-10-20 | P75: 2026-10-15 | Q75: 2022-10-20 | R75: 100000 | S75: 10435 | T75: 0274051582*
A76: RU000A100VD4 | B76: АйТеко1Р01 | C76: АО "Ай-Теко" | D76: 10300 | E76: 0 | F76: 10300 | G76: 10300 | H76: -764 | I76: 1561 | J76: 1690 | K76: -175 | L76: 1025 | M76: MC0476000000 | N76: RU000A100VD4 | O76: 2021-12-23 | P76: 2022-09-22 | Q76: 2021-12-23 | R76: 100000 | S76: 0 | T76: 7704160892*
A77: RU000A0JRJB8 | B77: ЗСД 01 | C77: АО "ЗСД" | D77: 10300 | E77: 10000 | F77: 10300 | G77: 10300 | H77: 1023 | I77: 68383 | J77: 62037 | K77: -6391 | L77: 29 | M77: MC0331400000 | N77: RU000A0JRJB8 | P77: 2031-05-13 | Q77: 2031-05-13 | R77: 100000 | S77: 10000 | T77: 7825392577*
A78: RU000A0JRJL7 | B78: ЗСД 02 | C78: АО "ЗСД" | D78: 14000 | E78: 9798 | F78: 14000 | G78: 14000 | H78: 551 | I78: 71232 | J78: 67512 | K78: -9698 | L78: 3661 | M78: MC0331400000 | N78: RU000A0JRJL7 | P78: 2031-05-13 | Q78: 2031-05-13 | R78: 100000 | S78: 0 | T78: 7825392577*
A79: RU000A0JS4K9 | B79: ЗСД 04 | C79: АО "ЗСД" | D79: 13000 | E79: 9999 | F79: 13000 | G79: 13000 | H79: 619 | I79: 73890 | J79: 69583 | K79: -9254 | L79: 2992 | M79: MC0331400000 | N79: RU000A0JS4K9 | P79: 2032-02-06 | Q79: 2032-02-06 | R79: 100000 | S79: 10907 | T79: 7825392577*
A80: RU000A0JS4J1 | B80: ЗСД 03 | C80: АО "ЗСД" | D80: 10700 | E80: 9670 | F80: 10700 | G80: 10700 | H80: 914 | I80: 77643 | J80: 71141 | K80: -7832 | L80: 3100 | M80: MC0331400000 | N80: RU000A0JS4J1 | P80: 2032-02-06 | Q80: 2032-02-06 | R80: 100000 | S80: 0 | T80: 7825392577*
A81: RU000A0JS4L7 | B81: ЗСД 05 | C81: АО "ЗСД" | D81: 10700 | E81: 9361 | F81: 10700 | G81: 10700 | H81: 915 | I81: 79863 | J81: 73168 | K81: -7896 | L81: 917 | M81: MC0331400000 | N81: RU000A0JS4L7 | P81: 2032-02-06 | Q81: 2032-02-06 | R81: 100000 | S81: 0 | T81: 7825392577*
A82: RU000A1018K1 | B82: Татнфт1P1 | C82: АО "Татнефть | D82: 10261 | E82: 10270 | F82: 10261 | G82: 10261 | H82: 518 | I82: 18904 | J82: 17973 | K82: -1869 | L82: 1414 | M82: MS0096300000 | N82: RU000A1018K1 | P82: 2022-12-20 | Q82: 2022-12-20 | R82: 100000 | S82: 10270 | T82: 1644003838*
A83: RU000A101624 | B83: Труд 1P-01 | C83: АО Труд | D83: 10543 | E83: 10524 | F83: 10543 | G83: 10543 | H83: 982 | I83: 17534 | J83: 15966 | K83: -1732 | L83: 3082 | M83: MC0480200000 | N83: RU000A101624 | P83: 2022-12-09 | Q83: 2022-12-09 | R83: 100000 | S83: 10509 | T83: 3812035570*
A84: RU000A0JXQQ9 | B84: АРАГОН об | C84: АРАГОН | D84: 10200 | E84: 0 | F84: 10200 | G84: 10200 | H84: 648 | I84: 7479 | J84: 7024 | K84: -730 | L84: 1948 | M84: MC0430400000 | N84: RU000A0JXQQ9 | P84: 2022-05-04 | Q84: 2022-05-04 | R84: 100000 | S84: 0 | T84: 5433158068*
A85: RU000A1007U3 | B85: АРАГОН БП1 | C85: АРАГОН | D85: 10200 | E85: 0 | F85: 10200 | G85: 10200 | H85: 797 | I85: 8931 | J85: 8272 | K85: -849 | L85: 685 | M85: MC0430400000 | N85: RU000A1007U3 | O85: 2022-03-25 | P85: 2029-03-16 | Q85: 2022-03-25 | R85: 100000 | S85: 0 | T85: 5433158068*
A86: RU000A100ME1 | B86: АРАГОН БП2 | C86: АРАГОН | D86: 10300 | E86: 0 | F86: 10300 | G86: 10300 | H86: 545 | I86: 9589 | J86: 9093 | K86: -937 | L86: 70 | M86: MC0430400000 | N86: RU000A100ME1 | O86: 2022-07-19 | P86: 2029-07-10 | Q86: 2022-07-19 | R86: 100000 | S86: 0 | T86: 5433158068*
A87: RU000A1005L6 | B87: Система1P9 | C87: АФК"система" | D87: 10269 | E87: 10403 | F87: 10269 | G87: 10269 | H87: 699 | I87: 9150 | J87: 8552 | K87: -883 | L87: 597 | M87: MS0258000000 | N87: RU000A1005L6 | O87: 2022-03-02 | P87: 2029-02-21 | Q87: 2022-03-02 | R87: 100000 | S87: 10245 | T87: 7703104630*
A88: RU000A0JXN21 | B88: СистемБ1P6 | C88: АФК"система" | D88: 10187 | E88: 10184 | F88: 10187 | G88: 10187 | H88: 708 | I88: 9561 | J88: 8929 | K88: -947 | L88: 4243 | M88: MS0258000000 | N88: RU000A0JXN21 | O88: 2022-04-01 | P88: 2027-03-26 | Q88: 2022-04-01 | R88: 100000 | S88: 10184 | T88: 7703104630*
A89: RU000A0JVUK8 | B89: СистемБ1P1 | C89: АФК"система" | D89: 10475 | E89: 10468 | F89: 10475 | G89: 10475 | H89: 600 | I89: 12493 | J89: 11785 | K89: -1255 | L89: 1763 | M89: MS0258000000 | N89: RU000A0JVUK8 | O89: 2022-04-05 | P89: 2025-09-30 | Q89: 2022-04-05 | R89: 100000 | S89: 10468 | T89: 7703104630*
A90: RU000A1008J4 | B90: Систем1P10 | C90: АФК"система" | D90: 10380 | E90: 10360 | F90: 10380 | G90: 10380 | H90: 733 | I90: 13835 | J90: 12890 | K90: -1398 | L90: 4719 | M90: MS0258000000 | N90: RU000A1008J4 | O90: 2022-09-30 | P90: 2029-03-23 | Q90: 2022-09-30 | R90: 100000 | S90: 10360 | T90: 7703104630*
A91: RU000A101XN7 | B91: Систем1P14 | C91: АФК"система" | D91: 9849 | E91: 9812 | F91: 9849 | G91: 9849 | H91: 733 | I91: 19315 | J91: 17995 | K91: -1792 | L91: 1113 | M91: MS0258000000 | N91: RU000A101XN7 | O91: 2023-04-19 | P91: 2030-07-10 | Q91: 2023-04-19 | R91: 100000 | S91: 9812 | T91: 7703104630*
A92: RU000A102FS1 | B92: Систем1P16 | C92: АФК"система" | D92: 10000 | E92: 10010 | F92: 10000 | G92: 10000 | H92: 624 | I92: 21041 | J92: 19805 | K92: -1981 | L92: 67 | M92: MS0258000000 | N92: RU000A102FS1 | O92: 2023-03-06 | P92: 2030-11-25 | Q92: 2023-03-06 | R92: 100000 | S92: 10012 | T92: 7703104630*
A93: RU000A100N12 | B93: Систем1P11 | C93: АФК"система" | D93: 10433 | E93: 10390 | F93: 10445 | G93: 10445 | H93: 741 | I93: 21232 | J93: 19768 | K93: -2094 | L93: 1519 | M93: MS0258000000 | N93: RU000A100N12 | O93: 2023-07-24 | P93: 2029-07-16 | Q93: 2023-07-24 | R93: 100000 | S93: 10390 | T93: 7703104630*
A94: RU000A0JVXZ0 | B94: СистемБ1P2 | C94: АФК"система" | D94: 10400 | E94: 0 | F94: 10400 | G94: 10400 | H94: 933 | I94: 22410 | J94: 20498 | K94: -2221 | L94: 4360 | M94: MS0258000000 | N94: RU000A0JVXZ0 | P94: 2025-10-31 | Q94: 2025-10-31 | R94: 100000 | S94: 0 | T94: 7703104630*
A95: RU000A102SV8 | B95: Систем1P18 | C95: АФК"система" | D95: 9938 | E95: 9938 | F95: 9938 | G95: 9938 | H95: 735 | I95: 24547 | J95: 22867 | K95: -2282 | L95: 454 | M95: MS0258000000 | N95: RU000A102SV8 | O95: 2023-11-27 | P95: 2031-02-17 | Q95: 2023-11-27 | R95: 100000 | S95: 9938 | T95: 7703104630*
A96: RU000A0JWZY6 | B96: СистемБ1P5 | C96: АФК"система" | D96: 9965 | E96: 9925 | F96: 9965 | G96: 9965 | H96: 717 | I96: 26356 | J96: 24592 | K96: -2466 | L96: 638 | M96: MS0258000000 | N96: RU000A0JWZY6 | O96: 2024-02-16 | P96: 2026-11-13 | Q96: 2024-02-16 | R96: 100000 | S96: 9925 | T96: 7703104630*
A97: RU000A0JWYQ5 | B97: СистемБ1P4 | C97: АФК"система" | D97: 9987 | E97: 10030 | F97: 9987 | G97: 9987 | H97: 650 | I97: 26767 | J97: 25133 | K97: -2525 | L97: 609 | M97: MS0258000000 | N97: RU000A0JWYQ5 | O97: 2023-11-03 | P97: 2026-10-30 | Q97: 2023-11-03 | R97: 100000 | S97: 10030 | T97: 7703104630*
A98: RU000A101Q26 | B98: Систем1P13 | C98: АФК"система" | D98: 9782 | E98: 9744 | F98: 9782 | G98: 9782 | H98: 752 | I98: 28410 | J98: 26423 | K98: -2642 | L98: 2170 | M98: MS0258000000 | N98: RU000A101Q26 | O98: 2024-05-22 | P98: 2030-05-15 | Q98: 2024-05-22 | R98: 100000 | S98: 9744 | T98: 7703104630*
A99: RU000A101012 | B99: Систем1P12 | C99: АФК"система" | D99: 10123 | E99: 10084 | F99: 10120 | G99: 10120 | H99: 760 | I99: 31150 | J99: 28950 | K99: -3018 | L99: 3054 | M99: MS0258000000 | N99: RU000A101012 | O99: 2024-10-29 | P99: 2029-10-23 | Q99: 2024-10-29 | R99: 100000 | S99: 10084 | T99: 7703104630*
A100: RU000A1023K1 | B100: Систем1P15 | C100: АФК"система" | D100: 9844 | E100: 10003 | F100: 9844 | G100: 9844 | H100: 735 | I100: 31178 | J100: 29043 | K100: -2868 | L100: 312 | M100: MS0258000000 | N100: RU000A1023K1 | O100: 2024-09-02 | P100: 2030-08-26 | Q100: 2024-09-02 | R100: 100000 | S100: 9798 | T100: 7703104630*
A101: RU000A0ZYWU3 | B101: Система1P8 | C101: АФК"система" | D101: 10873 | E101: 10850 | F101: 10873 | G101: 10873 | H101: 642 | I101: 31917 | J101: 29992 | K101: -3335 | L101: 2466 | M101: MS0258000000 | N101: RU000A0ZYWU3 | O101: 2024-08-28 | P101: 2028-02-23 | Q101: 2024-08-28 | R101: 100000 | S101: 10849 | T101: 7703104630*
A102: RU000A102SX4 | B102: Систем1P19 | C102: АФК"система" | D102: 9960 | E102: 9974 | F102: 9960 | G102: 9960 | H102: 768 | I102: 34273 | J102: 31829 | K102: -3185 | L102: 483 | M102: MS0258000000 | N102: RU000A102SX4 | O102: 2025-02-24 | P102: 2031-02-17 | Q102: 2025-02-24 | R102: 100000 | S102: 9974 | T102: 7703104630*
A103: RU000A0ZYQY7 | B103: СистемБ1P7 | C103: АФК"система" | D103: 9691 | E103: 9686 | F103: 9681 | G103: 9681 | H103: 793 | I103: 37726 | J103: 34954 | K103: -3420 | L103: 1040 | M103: MS0258000000 | N103: RU000A0ZYQY7 | O103: 2025-07-25 | P103: 2028-01-21 | Q103: 2025-07-25 | R103: 100000 | S103: 9686 | T103: 7703104630*
A104: RU000A102FT9 | B104: Систем1P17 | C104: АФК"система" | D104: 9976 | E104: 9989 | F104: 9976 | G104: 9976 | H104: 693 | I104: 39342 | J104: 36792 | K104: -3673 | L104: 74 | M104: MS0258000000 | N104: RU000A102FT9 | O104: 2025-06-02 | P104: 2030-11-25 | Q104: 2025-06-02 | R104: 100000 | S104: 9989 | T104: 7703104630*
A105: RU000A0JV8P4 | B105: СистемаБО1 | C105: АФК"система" | D105: 10001 | E105: 10003 | F105: 10001 | G105: 10001 | H105: 0 | I105: 134630 | J105: 134630 | K105: -13464 | L105: 0 | M105: MS0258000000 | N105: RU000A0JV8P4 | P105: 2030-01-31 | Q105: 2030-01-31 | R105: 100000 | S105: 0 | T105: 7703104630*
A106: RU000A1007Q1 | B106: АВНГРДБ1P2 | C106: Авангард | D106: 10000 | E106: 0 | F106: 10000 | G106: 10000 | H106: 723 | I106: 4657 | J106: 4343 | K106: -435 | L106: 153 | M106: MC0060700000 | N106: RU000A1007Q1 | P106: 2029-02-28 | Q106: 2029-02-28 | R106: 100000 | S106: 0 | T106: 7702021163*
A107: RU000A0JWA92 | B107: Авенир02 | C107: Авенир | D107: 10000 | E107: 0 | F107: 10000 | G107: 10000 | H107: 402 | I107: 3835 | J107: 3687 | K107: -37 | L107: 46 | M107: MC0386300000 | N107: RU000A0JWA92 | O107: 2022-03-16 | P107: 2036-02-27 | Q107: 2022-03-16 | R107: 10000 | S107: 0 | T107: 7718511935*
A108: RU000A100K31 | B108: Рубеж 1P1 | C108: АгроФирмаРуб | D108: 10700 | E108: 10570 | F108: 10700 | G108: 10700 | H108: 928 | I108: 13890 | J108: 12710 | K108: -1436 | L108: 5984 | M108: MC0472800000 | N108: RU000A100K31 | P108: 2022-07-06 | Q108: 2022-07-06 | R108: 100000 | S108: 10671 | T108: 6445005149*
A109: RU000A1029G6 | B109: КрасЯрск13 | C109: АдмКрасноярс | D109: 9830 | E109: 9740 | F109: 9830 | G109: 9830 | H109: 710 | I109: 25835 | J109: 24122 | K109: -2397 | L109: 1079 | M109: MS0161400000 | N109: RU000A1029G6 | P109: 2025-10-16 | Q109: 2025-10-16 | R109: 100000 | S109: 9754 | T109: 2451000840*
A110: RU000A0ZYJ00 | B110: ННовгор 17 | C110: АдмНижнНовг | D110: 10243 | E110: 10225 | F110: 10243 | G110: 10243 | H110: 589 | I110: 10520 | J110: 9935 | K110: -511 | L110: 222 | M110: MS0154400000 | N110: RU000A0ZYJ00 | P110: 2022-12-05 | Q110: 2022-12-05 | R110: 50000 | S110: 10225 | T110: 5253001036*
A111: RU000A1018A2 | B111: ТомскАдм 7 | C111: Адм. Томска | D111: 10015 | E111: 10016 | F111: 10015 | G111: 10015 | H111: 749 | I111: 20000 | J111: 18606 | K111: -1591 | L111: 404 | M111: MS0225300000 | N111: RU000A1018A2 | P111: 2024-12-22 | Q111: 2024-12-22 | R111: 85000 | S111: 10016 | T111: 7017004461*
A112: RU000A102LR1 | B112: ТомскАдм 8 | C112: Адм. Томска | D112: 9850 | E112: 9904 | F112: 9850 | G112: 9850 | H112: 747 | I112: 27013 | J112: 25136 | K112: -2485 | L112: 367 | M112: MS0225300000 | N112: RU000A102LR1 | P112: 2025-12-27 | Q112: 2025-12-27 | R112: 100000 | S112: 9900 | T112: 7017004461*
A113: RU000A0ZYCD1 | B113: Курск35001 | C113: АдминКурскОб | D113: 10472 | E113: 10470 | F113: 10472 | G113: 10472 | H113: 610 | I113: 23534 | J113: 22181 | K113: -1413 | L113: 900 | M113: MC0441300000 | N113: RU000A0ZYCD1 | P113: 2025-10-12 | Q113: 2025-10-12 | R113: 60000 | S113: 10467 | T113: 4629016041*
A114: RU000A0JXSS1 | B114: Акрон Б1P2 | C114: Акрон | D114: 10179 | E114: 10174 | F114: 10120 | G114: 10120 | H114: 686 | I114: 6657 | J114: 6230 | K114: -647 | L114: 2686 | M114: MS0164800000 | N114: RU000A0JXSS1 | O114: 2023-11-28 | P114: 2027-05-25 | Q114: 2023-11-28 | R114: 100000 | S114: 10174 | T114: 5321029508*
A115: RU000A0JWV89 | B115: Акрон Б1P1 | C115: Акрон | D115: 10044 | E115: 10019 | F115: 10044 | G115: 10044 | H115: 571 | I115: 17150 | J115: 16224 | K115: -1648 | L115: 1148 | M115: MS0164800000 | N115: RU000A0JWV89 | O115: 2022-09-29 | P115: 2026-09-24 | Q115: 2022-09-29 | R115: 100000 | S115: 10019 | T115: 5321029508*
A116: RU000A100YU2 | B116: Акрон Б1P3 | C116: Акрон | D116: 10071 | E116: 10012 | F116: 10070 | G116: 10070 | H116: 700 | I116: 19068 | J116: 17821 | K116: -1848 | L116: 3039 | M116: MS0164800000 | N116: RU000A100YU2 | P116: 2023-04-21 | Q116: 2023-04-21 | R116: 100000 | S116: 10012 | T116: 5321029508*
A117: RU000A0ZYU21 | B117: АЛЬФА БО40 | C117: Альфа | D117: 10050 | E117: 10044 | F117: 10050 | G117: 10050 | H117: 474 | I117: 2027 | J117: 1935 | K117: -198 | L117: 2195 | M117: MC0000500000 | N117: RU000A0ZYU21 | O117: 2024-02-26 | P117: 2033-03-04 | Q117: 2024-02-26 | R117: 100000 | S117: 10041 | T117: 7728168971*
A118: RU000A0JXRV7 | B118: АльфаБО-20 | C118: Альфа | D118: 10043 | E118: 10020 | F118: 10043 | G118: 10043 | H118: 486 | I118: 4520 | J118: 4311 | K118: -434 | L118: 270 | M118: MC0000500000 | N118: RU000A0JXRV7 | O118: 2023-05-23 | P118: 2032-05-11 | Q118: 2023-05-23 | R118: 100000 | S118: 10020 | T118: 7728168971*
A119: RU000A0JV0U1 | B119: АльфаБО-15 | C119: Альфа | D119: 10050 | E119: 9906 | F119: 10050 | G119: 10050 | H119: 631 | I119: 4575 | J119: 4303 | K119: -433 | L119: 302 | M119: MC0000500000 | N119: RU000A0JV0U1 | O119: 2023-05-23 | P119: 2029-11-13 | Q119: 2023-05-23 | R119: 100000 | S119: 10118 | T119: 7728168971*
A120: RU000A0JWUX9 | B120: АльфаБО-17 | C120: Альфа | D120: 10400 | E120: 10364 | F120: 10325 | G120: 10325 | H120: 159 | I120: 4904 | J120: 4827 | K120: -520 | L120: 4607 | M120: MC0000500000 | N120: RU000A0JWUX9 | O120: 2022-09-27 | P120: 2031-09-16 | Q120: 2022-09-27 | R120: 100000 | S120: 10418 | T120: 7728168971*
A121: RU000A0ZYWB3 | B121: АЛЬФА БО39 | C121: Альфа | D121: 10145 | E121: 10147 | F121: 10145 | G121: 10145 | H121: 536 | I121: 7232 | J121: 6864 | K121: -709 | L121: 1933 | M121: MC0000500000 | N121: RU000A0ZYWB3 | O121: 2024-09-09 | P121: 2033-03-17 | Q121: 2024-09-09 | R121: 100000 | S121: 10147 | T121: 7728168971*
A122: RU000A0JUUA1 | B122: АльфаБО-14 | C122: Альфа | D122: 10225 | E122: 10263 | F122: 10100 | G122: 10100 | H122: 515 | I122: 7260 | J122: 6904 | K122: -711 | L122: 2079 | M122: MC0000500000 | N122: RU000A0JUUA1 | P122: 2029-08-30 | Q122: 2029-08-30 | R122: 100000 | S122: 10209 | T122: 7728168971*
A123: RU000A0JUU90 | B123: АльфаБО-13 | C123: Альфа | D123: 10000 | E123: 9940 | F123: 10000 | G123: 10000 | H123: 536 | I123: 7315 | J123: 6942 | K123: -703 | L123: 1336 | M123: MC0000500000 | N123: RU000A0JUU90 | O123: 2022-09-08 | P123: 2029-08-30 | Q123: 2022-09-08 | R123: 100000 | S123: 9972 | T123: 7728168971*
A124: RU000A102788 | B124: АЛЬФА-Б2Р7 | C124: Альфа | D124: 9970 | E124: 9980 | F124: 9970 | G124: 9970 | H124: 578 | I124: 7506 | J124: 7096 | K124: -716 | L124: 1249 | M124: MC0000500000 | N124: RU000A102788 | P124: 2021-12-29 | Q124: 2021-12-29 | R124: 100000 | S124: 9980 | T124: 7728168971*
A125: RU000A0JWPV3 | B125: АльфаБО-16 | C125: Альфа | D125: 10275 | E125: 9069 | F125: 10281 | G125: 10281 | H125: 536 | I125: 10958 | J125: 10401 | K125: -1097 | L125: 2693 | M125: MC0000500000 | N125: RU000A0JWPV3 | O125: 2022-02-03 | P125: 2031-07-24 | Q125: 2022-02-03 | R125: 100000 | S125: 10228 | T125: 7728168971*
A126: RU000A0ZZZ66 | B126: АЛЬФА-Б2Р3 | C126: Альфа | D126: 10380 | E126: 10351 | F126: 10380 | G126: 10380 | H126: 607 | I126: 11863 | J126: 11184 | K126: -1187 | L126: 2344 | M126: MC0000500000 | N126: RU000A0ZZZ66 | P126: 2022-06-24 | Q126: 2022-06-24 | R126: 100000 | S126: 10351 | T126: 7728168971*
A127: RU000A100PQ8 | B127: АЛЬФА-Б2Р5 | C127: Альфа | D127: 10243 | E127: 10245 | F127: 10243 | G127: 10243 | H127: 612 | I127: 13260 | J127: 12495 | K127: -1292 | L127: 974 | M127: MC0000500000 | N127: RU000A100PQ8 | P127: 2022-08-11 | Q127: 2022-08-11 | R127: 100000 | S127: 10245 | T127: 7728168971*
A128: RU000A0ZYFE2 | B128: Альфа-Б1Р1 | C128: Альфа | D128: 10000 | E128: 9992 | F128: 10000 | G128: 10000 | H128: 1 | I128: 19369 | J128: 19367 | K128: -1936 | L128: 1 | M128: MC0000500000 | N128: RU000A0ZYFE2 | P128: 2022-11-07 | Q128: 2022-11-07 | R128: 100000 | S128: 10000 | T128: 7728168971*
A129: RU000A0JX5W4 | B129: АльфаБО-18 | C129: Альфа | D129: 10132 | E129: 10137 | F129: 10132 | G129: 10132 | H129: 590 | I129: 19479 | J129: 18394 | K129: -1910 | L129: 2564 | M129: MC0000500000 | N129: RU000A0JX5W4 | O129: 2023-01-16 | P129: 2032-01-05 | Q129: 2023-01-16 | R129: 100000 | S129: 10137 | T129: 7728168971*
A130: RU000A0ZYBM4 | B130: АльфаБО-21 | C130: Альфа | D130: 10089 | E130: 10050 | F130: 10089 | G130: 10089 | H130: 563 | I130: 26136 | J130: 24743 | K130: -2523 | L130: 1099 | M130: MC0000500000 | N130: RU000A0ZYBM4 | O130: 2023-10-07 | P130: 2032-10-13 | Q130: 2023-10-07 | R130: 100000 | S130: 10066 | T130: 7728168971*
A131: RU000A102A07 | B131: АЛЬФА-Б2Р8 | C131: Альфа | D131: 10050 | E131: 10050 | F131: 10050 | G131: 10050 | H131: 579 | I131: 26767 | J131: 25302 | K131: -2561 | L131: 727 | M131: MC0000500000 | N131: RU000A102A07 | P131: 2023-10-30 | Q131: 2023-10-30 | R131: 100000 | S131: 10050 | T131: 7728168971*
A132: RU000A102S80 | B132: АЛЬФАБ2Р10 | C132: Альфа | D132: 9893 | E132: 9816 | F132: 9893 | G132: 9893 | H132: 671 | I132: 26958 | J132: 25263 | K132: -2513 | L132: 578 | M132: MC0000500000 | N132: RU000A102S80 | P132: 2024-02-22 | Q132: 2024-02-22 | R132: 100000 | S132: 9816 | T132: 7728168971*
A133: RU000A0ZYGB6 | B133: АльфаБО-22 | C133: Альфа | D133: 9995 | E133: 9986 | F133: 9995 | G133: 9995 | H133: 580 | I133: 27616 | J133: 26102 | K133: -2615 | L133: 250 | M133: MC0000500000 | N133: RU000A0ZYGB6 | O133: 2023-11-28 | P133: 2032-12-04 | Q133: 2023-11-28 | R133: 100000 | S133: 9986 | T133: 7728168971*
A134: RU000A0JUJW8 | B134: АрчерФин01 | C134: Арчер Финанс | D134: 59 | E134: 10203 | F134: 59 | G134: 59 | H134: 0 | I134: 71315 | J134: 71315 | K134: -1814 | L134: 24852 | M134: MC0369800000 | N134: RU000A0JUJW8 | P134: 2027-03-23 | Q134: 2027-03-23 | R134: 100000 | S134: 10000 | T134: 7723735867*
A135: RU000A102LW1 | B135: АБЗ-1 1Р01 | C135: Асфальтобето | D135: 10020 | E135: 10021 | F135: 10020 | G135: 10020 | H135: 1243 | I135: 18547 | J135: 16497 | K135: -1700 | L135: 2860 | M135: PC0495000000 | N135: RU000A102LW1 | P135: 2023-12-25 | Q135: 2023-12-25 | R135: 100000 | S135: 10021 | T135: 7804016807*
A136: RU000A100VS2 | B136: Атомстр 01 | C136: Атомстройком | D136: 10184 | E136: 10195 | F136: 10184 | G136: 10184 | H136: 815 | I136: 4849 | J136: 4483 | K136: -482 | L136: 5698 | M136: MC0427800000 | N136: RU000A100VS2 | P136: 2024-09-24 | Q136: 2024-09-24 | R136: 100000 | S136: 10195 | T136: 6685028774*
A137: RU000A102VY6 | B137: АТОМ БП01 | C137: Атомстройком | D137: 9973 | E137: 9975 | F137: 9972 | G137: 9972 | H137: 889 | I137: 14328 | J137: 13158 | K137: -1312 | L137: 23 | M137: MC0427800000 | N137: RU000A102VY6 | O137: 2022-09-21 | P137: 2026-03-18 | Q137: 2022-09-21 | R137: 100000 | S137: 9975 | T137: 6685028774*
A138: RU000A0JW167 | B138: АтомэнпБО7 | C138: Атомэнергопр | D138: 11322 | E138: 10715 | F138: 11322 | G138: 11322 | H138: 560 | I138: 22410 | J138: 21222 | K138: -2500 | L138: 4592 | M138: MC0302000000 | N138: RU000A0JW167 | O138: 2022-12-16 | P138: 2025-12-12 | Q138: 2022-12-16 | R138: 100000 | S138: 10738 | T138: 7706664260*
A139: RU000A0JVLB6 | B139: АтомэнпБО5 | C139: Атомэнергопр | D139: 0 | E139: 0 | F139: 10000 | G139: 10000 | H139: 1225 | I139: 34410 | J139: 30655 | K139: -3234 | L139: 5510 | M139: MC0302000000 | N139: RU000A0JVLB6 | O139: 2020-07-01 | P139: 2025-06-25 | Q139: 2020-07-01 | R139: 100000 | S139: 0 | T139: 7706664260*
A140: RU000A0JW175 | B140: АтомэнпБО8 | C140: Атомэнергопр | D140: 10950 | E140: 10963 | F140: 10930 | G140: 10930 | H140: 895 | I140: 38383 | J140: 35230 | K140: -4038 | L140: 5322 | M140: MC0302000000 | N140: RU000A0JW175 | P140: 2025-12-12 | Q140: 2025-12-12 | R140: 100000 | S140: 10963 | T140: 7706664260*
A141: RU000A0JUQC5 | B141: АшинМЗ БО1 | C141: Ашинский мет | D141: 8513 | E141: 8495 | F141: 8513 | G141: 8513 | H141: 85517 | I141: 739 | J141: 77 | K141: -6 | L141: 2973 | M141: MC0278000000 | N141: RU000A0JUQC5 | O141: 2021-12-20 | P141: 2024-06-17 | Q141: 2021-12-20 | R141: 100000 | S141: 8493 | T141: 7401000473*
A142: RU000A102T97 | B142: Аэрфью1Р01 | C142: Аэрофьюэлз | D142: 10051 | E142: 10047 | F142: 10046 | G142: 10046 | H142: 938 | I142: 25890 | J142: 23670 | K142: -2391 | L142: 558 | M142: MC0500200000 | N142: RU000A102T97 | P142: 2024-02-28 | Q142: 2024-02-28 | R142: 100000 | S142: 10047 | T142: 7714216826*
A143: RU000A100A33 | B143: БКЕ БО 1P2 | C143: БКЕ | D143: 10410 | E143: 10338 | F143: 10410 | G143: 10410 | H143: 544 | I143: 13041 | J143: 12368 | K143: -1301 | L143: 1148 | M143: MC0332200000 | N143: RU000A100A33 | P143: 2022-04-23 | Q143: 2022-04-23 | R143: 100000 | S143: 10338 | T143: 8608049090*
A144: RU000A100G03 | B144: БКЕ БО 1P3 | C144: БКЕ | D144: 10275 | E144: 10247 | F144: 10275 | G144: 10275 | H144: 716 | I144: 20438 | J144: 19072 | K144: -2002 | L144: 2232 | M144: MC0332200000 | N144: RU000A100G03 | P144: 2023-06-18 | Q144: 2023-06-18 | R144: 100000 | S144: 10247 | T144: 8608049090*
A145: RU000A0ZYR18 | B145: БСК 1P1 | C145: БСК АО | D145: 10240 | E145: 10288 | F145: 10240 | G145: 10240 | H145: 680 | I145: 16410 | J145: 15366 | K145: -1587 | L145: 910 | M145: MC0442400000 | N145: RU000A0ZYR18 | P145: 2023-01-27 | Q145: 2023-01-27 | R145: 100000 | S145: 10288 | T145: 0268008010*
A146: RU000A101UR4 | B146: БСК 1Р-02 | C146: БСК АО | D146: 9945 | E146: 9985 | F146: 9945 | G146: 9945 | H146: 692 | I146: 36246 | J146: 33900 | K146: -3416 | L146: 1320 | M146: MC0442400000 | N146: RU000A101UR4 | P146: 2025-06-24 | Q146: 2025-06-24 | R146: 100000 | S146: 9985 | T146: 0268008010*
A147: RU000A100535 | B147: БЭЛТИ БОП1 | C147: БЭЛТИ-ГРАНД | D147: 10117 | E147: 10160 | F147: 10117 | G147: 10117 | H147: 1233 | I147: 5479 | J147: 4877 | K147: -61 | L147: 397 | M147: MC0468800000 | N147: RU000A100535 | P147: 2022-03-01 | Q147: 2022-03-01 | R147: 12000 | S147: 10114 | T147: 7728192413*
A148: RU000A100TT4 | B148: БЭЛТИ БОП2 | C148: БЭЛТИ-ГРАНД | D148: 10057 | E148: 10076 | F148: 10048 | G148: 10048 | H148: 1293 | I148: 17397 | J148: 15405 | K148: -1436 | L148: 514 | M148: MC0468800000 | N148: RU000A100TT4 | P148: 2024-08-21 | Q148: 2024-08-21 | R148: 92300 | S148: 10075 | T148: 7728192413*
A149: RU000A102GC3 | B149: БЭЛТИ БОП3 | C149: БЭЛТИ-ГРАНД | D149: 10013 | E149: 10007 | F149: 10013 | G149: 10013 | H149: 1263 | I149: 27397 | J149: 24325 | K149: -2436 | L149: 33 | M149: MC0468800000 | N149: RU000A102GC3 | P149: 2025-11-14 | Q149: 2025-11-14 | R149: 100000 | S149: 10007 | T149: 7728192413*
A150: RU000A100JE7 | B150: БалтЛизБП2 | C150: Балтийский л | D150: 10251 | E150: 10258 | F150: 10251 | G150: 10251 | H150: 674 | I150: 9616 | J150: 9009 | K150: -427 | L150: 1267 | M150: PC0375200000 | N150: RU000A100JE7 | P150: 2022-07-04 | Q150: 2022-07-04 | R150: 45000 | S150: 10258 | T150: 7826705374*
A151: RU000A101Z66 | B151: БалтЛизБП3 | C151: Балтийский л | D151: 10033 | E151: 10022 | F151: 10110 | G151: 10110 | H151: 719 | I151: 22493 | J151: 20984 | K151: -2144 | L151: 1077 | M151: PC0375200000 | N151: RU000A101Z66 | P151: 2024-07-26 | Q151: 2024-07-26 | R151: 100000 | S151: 10014 | T151: 7826705374*
A152: RU000A100D30 | B152: Беларусь03 | C152: Беларусь | D152: 9891 | E152: 9898 | F152: 9891 | G152: 9891 | H152: 1041 | I152: 6273 | J152: 5682 | K152: -579 | L152: 3010 | M152: MC0322700000 | N152: RU000A100D30 | P152: 2022-08-03 | Q152: 2022-08-03 | R152: 100000 | S152: 9898 | T152: 100691903*
A153: RU000A100D63 | B153: Беларусь04 | C153: Беларусь | D153: 9908 | E153: 9904 | F153: 9908 | G153: 9908 | H153: 1038 | I153: 6273 | J153: 5683 | K153: -580 | L153: 3010 | M153: MC0322700000 | N153: RU000A100D63 | P153: 2022-08-03 | Q153: 2022-08-03 | R153: 100000 | S153: 9904 | T153: 100691903*
A154: RU000A100D89 | B154: Беларусь07 | C154: Беларусь | D154: 9370 | E154: 9361 | F154: 9370 | G154: 9370 | H154: 1103 | I154: 29808 | J154: 26846 | K154: -2537 | L154: 815 | M154: MC0322700000 | N154: RU000A100D89 | P154: 2025-05-01 | Q154: 2025-05-01 | R154: 100000 | S154: 9361 | T154: 100691903*
A155: RU000A0JXTB5 | B155: БелугаБП1 | C155: Белуга Групп | D155: 10204 | E155: 10398 | F155: 10200 | G155: 10200 | H155: 716 | I155: 8328 | J155: 7772 | K155: -412 | L155: 2089 | M155: MS0197100000 | N155: RU000A0JXTB5 | P155: 2022-06-07 | Q155: 2022-06-07 | R155: 50000 | S155: 10193 | T155: 7705634425*
A156: RU000A100L63 | B156: БелугаБП2 | C156: Белуга Групп | D156: 10660 | E156: 10694 | F156: 10660 | G156: 10660 | H156: 698 | I156: 24630 | J156: 23023 | K156: -2543 | L156: 3878 | M156: MS0197100000 | N156: RU000A100L63 | P156: 2024-07-10 | Q156: 2024-07-10 | R156: 100000 | S156: 10694 | T156: 7705634425*
A157: RU000A1015E0 | B157: БелугаБП3 | C157: Белуга Групп | D157: 10130 | E157: 10129 | F157: 10130 | G157: 10130 | H157: 789 | I157: 26000 | J157: 24098 | K157: -2499 | L157: 2418 | M157: MS0197100000 | N157: RU000A1015E0 | P157: 2024-12-03 | Q157: 2024-12-03 | R157: 100000 | S157: 10129 | T157: 7705634425*
A158: RU000A102GU5 | B158: БелугаБП4 | C158: Белуга Групп | D158: 9852 | E158: 9851 | F158: 9852 | G158: 9852 | H158: 796 | I158: 36931 | J158: 34208 | K158: -3442 | L158: 2108 | M158: MS0197100000 | N158: RU000A102GU5 | P158: 2025-12-05 | Q158: 2025-12-05 | R158: 100000 | S158: 9851 | T158: 7705634425*
A159: RU000A1022G1 | B159: БизНед 1Р1 | C159: БизнесНедвиж | D159: 9904 | E159: 9895 | F159: 9904 | G159: 9904 | H159: 855 | I159: 25260 | J159: 23270 | K159: -2318 | L159: 584 | M159: MC0485900000 | N159: RU000A1022G1 | P159: 2024-08-23 | Q159: 2024-08-23 | R159: 100000 | S159: 9895 | T159: 7708797121*
A160: RU000A102SK1 | B160: Боржоми1Р1 | C160: БоржомиФин | D160: 9967 | E160: 9975 | F160: 9967 | G160: 9967 | H160: 788 | I160: 26575 | J160: 24634 | K160: -2469 | L160: 562 | M160: MC0504800000 | N160: RU000A102SK1 | O160: 2024-02-23 | P160: 2026-02-20 | Q160: 2024-02-23 | R160: 100000 | S160: 9975 | T160: 9725035060*
A161: RU000A100725 | B161: БрайтФ БП1 | C161: Брайт Финанс | D161: 10000 | E161: 9989 | F161: 10000 | G161: 10000 | H161: 946 | I161: 356 | J161: 325 | K161: -33 | L161: 1977 | M161: MC0466200000 | N161: RU000A100725 | O161: 2021-12-23 | P161: 2029-03-15 | Q161: 2021-12-23 | R161: 100000 | S161: 9989 | T161: 6685149835*
A162: RU000A101HU5 | B162: Брус 1P01 | C162: Брусника.СД | D162: 10245 | E162: 10235 | F162: 10245 | G162: 10245 | H162: 964 | I162: 14657 | J162: 13368 | K162: -1375 | L162: 422 | M162: MC0478700000 | N162: RU000A101HU5 | P162: 2023-03-09 | Q162: 2023-03-09 | R162: 100000 | S162: 10235 | T162: 6685151087*
A163: RU000A101483 | B163: БДеньги1Р1 | C163: Быстроденьги | D163: 10503 | E163: 10507 | F163: 10503 | G163: 10503 | H163: 1166 | I163: 10054 | J163: 9004 | K163: -600 | L163: 1013 | M163: MC0477900000 | N163: RU000A101483 | P163: 2022-11-17 | Q163: 2022-11-17 | R163: 62500 | S163: 10507 | T163: 7325081622*
A164: RU000A100691 | B164: ВБРР 1P-03 | C164: ВБРРегио | D164: 10196 | E164: 10250 | F164: 10196 | G164: 10196 | H164: 552 | I164: 5698 | J164: 5400 | K164: -558 | L164: 1431 | M164: MC0054400000 | N164: RU000A100691 | O164: 2022-03-11 | P164: 2024-03-08 | Q164: 2022-03-11 | R164: 100000 | S164: 10238 | T164: 7736153344*
A165: RU000A101NQ1 | B165: ВБРР 1P-04 | C165: ВБРРегио | D165: 10089 | E165: 10026 | F165: 10089 | G165: 10089 | H165: 597 | I165: 13616 | J165: 12849 | K165: -1302 | L165: 499 | M165: MC0054400000 | N165: RU000A101NQ1 | O165: 2022-05-13 | P165: 2025-05-09 | Q165: 2022-05-13 | R165: 100000 | S165: 10027 | T165: 7736153344*
A166: RU000A1025H2 | B166: ВБРР 1P-05 | C166: ВБРРегио | D166: 10020 | E166: 10006 | F166: 10029 | G166: 10029 | H166: 580 | I166: 16876 | J166: 15951 | K166: -1619 | L166: 1224 | M166: MC0054400000 | N166: RU000A1025H2 | O166: 2022-09-22 | P166: 2025-09-18 | Q166: 2022-09-22 | R166: 100000 | S166: 10003 | T166: 7736153344*
A167: RU000A102952 | B167: ВИС Ф БП01 | C167: ВИС ФИНАНС | D167: 9963 | E167: 9955 | F167: 9963 | G167: 9963 | H167: 948 | I167: 22821 | J167: 20845 | K167: -2110 | L167: 1603 | M167: MC0490500000 | N167: RU000A102952 | O167: 2023-10-17 | P167: 2027-10-12 | Q167: 2023-10-17 | R167: 100000 | S167: 9955 | T167: 4705081944*
A168: RU000A102G50 | B168: ВСК 1P-01R | C168: ВСК | D168: 9684 | E168: 9558 | F168: 9700 | G168: 9700 | H168: 745 | I168: 40246 | J168: 37456 | K168: -3704 | L168: 1902 | M168: MC0425900000 | N168: RU000A102G50 | P168: 2025-12-03 | Q168: 2025-12-03 | R168: 100000 | S168: 9558 | T168: 2508064833*
A169: RU000A0JUCJ0 | B169: ВТБ 5ИПБ | C169: ВТБ РФ | D169: 10003 | E169: 10003 | F169: 10005 | G169: 10005 | H169: 255 | I169: 1068 | J169: 1041 | K169: -15 | L169: 339 | M169: MC0003300000 | N169: RU000A0JUCJ0 | P169: 2046-09-18 | Q169: 2046-09-18 | R169: 14955 | S169: 0 | T169: 7702070139*
A170: RU000A0JUPT1 | B170: ВТБ 6ИПБ | C170: ВТБ РФ | D170: 10003 | E170: 10003 | F170: 10005 | G170: 10005 | H170: 257 | I170: 1123 | J170: 1095 | K170: -21 | L170: 371 | M170: MC0003300000 | N170: RU000A0JUPT1 | P170: 2043-08-14 | Q170: 2043-08-14 | R170: 19336 | S170: 0 | T170: 7702070139*
A171: RU000A102887 | B171: ВТБСУБТ2-2 | C171: ВТБ РФ | D171: 9975 | E171: 0 | F171: 9975 | G171: 9975 | H171: 721 | I171: 3972 | J171: 3705 | K171: -3720403 | L171: 6538356 | M171: MC0003300000 | N171: RU000A102887 | O171: 2026-04-08 | P171: 2031-04-02 | Q171: 2026-04-08 | R171: 1000000000 | S171: 0 | T171: 7702070139*
A172: RU000A0JV3Q3 | B172: ВТБ БО-30 | C172: ВТБ РФ | D172: 10092 | E172: 10072 | F172: 10092 | G172: 10092 | H172: 584 | I172: 7452 | J172: 7040 | K172: -721 | L172: 1580 | M172: MC0003300000 | N172: RU000A0JV3Q3 | O172: 2023-09-15 | P172: 2024-12-13 | Q172: 2023-09-15 | R172: 100000 | S172: 10175 | T172: 7702070139*
A173: RU000A102LV3 | B173: ВТБ Б1-32 | C173: ВТБ РФ | D173: 9949 | E173: 9960 | F173: 9949 | G173: 9949 | H173: 546 | I173: 7479 | J173: 7092 | K173: -713 | L173: 1120 | M173: MC0003300000 | N173: RU000A102LV3 | P173: 2021-12-27 | Q173: 2021-12-27 | R173: 100000 | S173: 9960 | T173: 7702070139*
A174: RU000A0JU773 | B174: ВТБ БО-43 | C174: ВТБ РФ | D174: 9990 | E174: 9990 | F174: 9990 | G174: 9990 | H174: 527 | I174: 14876 | J174: 14131 | K174: -1425 | L174: 978 | M174: MC0003300000 | N174: RU000A0JU773 | O174: 2022-07-01 | P174: 2023-09-29 | Q174: 2022-07-01 | R174: 100000 | S174: 9990 | T174: 7702070139*
A175: RU000A101491 | B175: ВТБ Б-1-47 | C175: ВТБ РФ | D175: 10641 | E175: 10886 | F175: 9967 | G175: 9967 | H175: -362 | I175: 16821 | J175: 17453 | K175: -1739 | L175: 3 | M175: MC0003300000 | N175: RU000A101491 | P175: 2022-11-29 | Q175: 2022-11-29 | R175: 100000 | S175: 10886 | T175: 7702070139*
A176: RU000A101PR4 | B176: ВТБ Б-1-70 | C176: ВТБ РФ | D176: 9995 | E176: 9430 | F176: 9995 | G176: 9995 | H176: 0 | I176: 19287 | J176: 19287 | L176: 0 | M176: MC0003300000 | N176: RU000A101PR4 | P176: 2022-05-24 | Q176: 2022-05-24 | R176: 100000 | S176: 10029 | T176: 7702070139*
A177: RU000A101PW4 | B177: ВТБ Б-1-72 | C177: ВТБ РФ | D177: 10000 | E177: 0 | F177: 10000 | G177: 10000 | H177: 0 | I177: 19479 | J177: 19479 | L177: 0 | M177: MC0003300000 | N177: RU000A101PW4 | P177: 2022-05-31 | Q177: 2022-05-31 | R177: 100000 | S177: 9989 | T177: 7702070139*
A178: RU000A101S57 | B178: ВТБ Б-1-74 | C178: ВТБ РФ | D178: 9900 | E178: 9963 | F178: 9900 | G178: 9900 | H178: 0 | I178: 19671 | J178: 19671 | L178: 0 | M178: MC0003300000 | N178: RU000A101S57 | P178: 2022-06-07 | Q178: 2022-06-07 | R178: 100000 | S178: 9885 | T178: 7702070139*
A179: RU000A101SK3 | B179: ВТБ Б-1-76 | C179: ВТБ РФ | D179: 9902 | E179: 9954 | F179: 9902 | G179: 9902 | H179: 0 | I179: 19863 | J179: 19863 | L179: 0 | M179: MC0003300000 | N179: RU000A101SK3 | P179: 2022-06-14 | Q179: 2022-06-14 | R179: 100000 | S179: 9957 | T179: 7702070139*
A180: RU000A101F52 | B180: ВТБ Б-1-51 | C180: ВТБ РФ | D180: 9475 | E180: 9545 | F180: 9475 | G180: 9475 | H180: 253 | I180: 21780 | J180: 21243 | K180: -2012 | L180: 3 | M180: MC0003300000 | N180: RU000A101F52 | P180: 2023-02-14 | Q180: 2023-02-14 | R180: 100000 | S180: 9541 | T180: 7702070139*
A181: RU000A101GX1 | B181: ВТБ Б-1-56 | C181: ВТБ РФ | D181: 10413 | E181: 10395 | F181: 10413 | G181: 10413 | H181: -180 | I181: 22191 | J181: 22598 | K181: -2353 | L181: 3 | M181: MC0003300000 | N181: RU000A101GX1 | P181: 2023-02-28 | Q181: 2023-02-28 | R181: 100000 | S181: 10394 | T181: 7702070139*
A182: RU000A101GV5 | B182: ВТБ Б-1-55 | C182: ВТБ РФ | D182: 9634 | E182: 9706 | F182: 9684 | G182: 9684 | H182: 170 | I182: 22246 | J182: 21874 | K182: -2118 | L182: 3 | M182: MC0003300000 | N182: RU000A101GV5 | P182: 2023-02-28 | Q182: 2023-02-28 | R182: 100000 | S182: 9707 | T182: 7702070139*
A183: RU000A101JA3 | B183: ВТБ Б-1-59 | C183: ВТБ РФ | D183: 10034 | E183: 0 | F183: 9920 | G183: 9920 | H183: 0 | I183: 27342 | J183: 27342 | L183: 0 | M183: MC0003300000 | N183: RU000A101JA3 | P183: 2023-03-14 | Q183: 2023-03-14 | R183: 100000 | S183: 10070 | T183: 7702070139*
A184: RU000A101J90 | B184: ВТБ Б-1-58 | C184: ВТБ РФ | D184: 6593 | E184: 0 | F184: 6593 | G184: 6593 | H184: 0 | I184: 27643 | J184: 27643 | L184: 0 | M184: MC0003300000 | N184: RU000A101J90 | P184: 2023-03-14 | Q184: 2023-03-14 | R184: 100000 | S184: 0 | T184: 7702070139*
A185: RU000A101KC7 | B185: ВТБ Б-1-60 | C185: ВТБ РФ | D185: 9699 | E185: 9456 | F185: 9699 | G185: 9699 | H185: 0 | I185: 28219 | J185: 28219 | L185: 0 | M185: MC0003300000 | N185: RU000A101KC7 | P185: 2023-04-04 | Q185: 2023-04-04 | R185: 100000 | S185: 9446 | T185: 7702070139*
A186: RU000A101LL6 | B186: ВТБ Б-1-61 | C186: ВТБ РФ | D186: 10097 | E186: 10217 | F186: 10097 | G186: 10097 | H186: 0 | I186: 28493 | J186: 28493 | L186: 0 | M186: MC0003300000 | N186: RU000A101LL6 | P186: 2023-04-25 | Q186: 2023-04-25 | R186: 100000 | S186: 10163 | T186: 7702070139*
A187: RU000A101MY7 | B187: ВТБ Б-1-67 | C187: ВТБ РФ | D187: 9910 | E187: 9820 | F187: 9910 | G187: 9910 | H187: 0 | I187: 28739 | J187: 28739 | L187: 0 | M187: MC0003300000 | N187: RU000A101MY7 | P187: 2023-05-04 | Q187: 2023-05-04 | R187: 100000 | S187: 9918 | T187: 7702070139*
A188: RU000A101S65 | B188: ВТБ Б-1-75 | C188: ВТБ РФ | D188: 9940 | E188: 0 | F188: 9940 | G188: 9940 | H188: 0 | I188: 29643 | J188: 29643 | L188: 0 | M188: MC0003300000 | N188: RU000A101S65 | P188: 2023-06-06 | Q188: 2023-06-06 | R188: 100000 | S188: 9928 | T188: 7702070139*
A189: RU000A101PX2 | B189: ВТБ Б-1-73 | C189: ВТБ РФ | D189: 10200 | E189: 9892 | F189: 10200 | G189: 10200 | H189: 0 | I189: 29726 | J189: 29726 | L189: 0 | M189: MC0003300000 | N189: RU000A101PX2 | P189: 2023-06-09 | Q189: 2023-06-09 | R189: 100000 | S189: 9893 | T189: 7702070139*
A190: RU000A101SL1 | B190: ВТБ Б-1-77 | C190: ВТБ РФ | D190: 10199 | E190: 0 | F190: 10199 | G190: 10199 | H190: 0 | I190: 30109 | J190: 30109 | L190: 0 | M190: MC0003300000 | N190: RU000A101SL1 | P190: 2023-06-23 | Q190: 2023-06-23 | R190: 100000 | S190: 0 | T190: 7702070139*
A191: RU000A1014J2 | B191: ВТБ Т2-3 | C191: ВТБ РФ | D191: 10100 | E191: 10159 | F191: 10100 | G191: 10100 | H191: 827 | I191: 35232 | J191: 32541 | K191: -33720846 | L191: 26235616 | M191: MC0003300000 | N191: RU000A1014J2 | O191: 2025-05-27 | P191: 2030-05-21 | Q191: 2025-05-27 | R191: 1000000000 | S191: 10156 | T191: 7702070139*
A192: RU000A102879 | B192: ВТБСУБТ2-1 | C192: ВТБ РФ | D192: 9900 | E192: 9920 | F192: 9900 | G192: 9900 | H192: 800 | I192: 41369 | J192: 38305 | K192: -39214474 | L192: 33731507 | M192: MC0003300000 | N192: RU000A102879 | O192: 2026-04-08 | P192: 2031-04-02 | Q192: 2026-04-08 | R192: 1000000000 | S192: 9900 | T192: 7702070139*
A193: RU000A101KE3 | B193: ВТБ Б-1-65 | C193: ВТБ РФ | D193: 9301 | E193: 0 | F193: 9301 | G193: 9301 | H193: 0 | I193: 48520 | J193: 48520 | L193: 0 | M193: MC0003300000 | N193: RU000A101KE3 | P193: 2025-03-25 | Q193: 2025-03-25 | R193: 100000 | S193: 0 | T193: 7702070139*
A194: RU000A101MW1 | B194: ВТБ Б-1-66 | C194: ВТБ РФ | D194: 9980 | E194: 9928 | F194: 9980 | G194: 9980 | H194: 0 | I194: 48684 | J194: 48684 | L194: 0 | M194: MC0003300000 | N194: RU000A101MW1 | P194: 2025-05-01 | Q194: 2025-05-01 | R194: 100000 | S194: 9925 | T194: 7702070139*
A195: RU000A101NX7 | B195: ВТБ Б-1-68 | C195: ВТБ РФ | D195: 10097 | E195: 0 | F195: 10097 | G195: 10097 | H195: 0 | I195: 49013 | J195: 49013 | L195: 0 | M195: MC0003300000 | N195: RU000A101NX7 | P195: 2025-05-13 | Q195: 2025-05-13 | R195: 100000 | S195: 9909 | T195: 7702070139*
A196: RU000A101P01 | B196: ВТБ Б-1-69 | C196: ВТБ РФ | D196: 9800 | E196: 9669 | F196: 9800 | G196: 9800 | H196: 0 | I196: 49013 | J196: 49013 | L196: 0 | M196: MC0003300000 | N196: RU000A101P01 | P196: 2025-05-13 | Q196: 2025-05-13 | R196: 100000 | S196: 9667 | T196: 7702070139*
A197: RU000A101PS2 | B197: ВТБ Б-1-71 | C197: ВТБ РФ | D197: 9705 | E197: 9910 | F197: 9705 | G197: 9705 | H197: 0 | I197: 49205 | J197: 49205 | L197: 0 | M197: MC0003300000 | N197: RU000A101PS2 | P197: 2025-05-20 | Q197: 2025-05-20 | R197: 100000 | S197: 10018 | T197: 7702070139*
A198: RU000A0JRSX3 | B198: ВТБ 2ИПБ | C198: ВТБ РФ | D198: 10000 | E198: 10000 | F198: 10000 | G198: 10000 | H198: 0 | I198: 84136 | J198: 84136 | K198: -613 | L198: 210 | M198: MC0003300000 | N198: RU000A0JRSX3 | P198: 2043-11-26 | Q198: 2043-11-26 | R198: 7086 | S198: 0 | T198: 7702070139*
A199: RU000A0JSZG1 | B199: ВТБ 3ИПБ | C199: ВТБ РФ | D199: 10000 | E199: 10000 | F199: 10000 | G199: 10000 | H199: 0 | I199: 84602 | J199: 84602 | K199: -675 | L199: 250 | M199: MC0003300000 | N199: RU000A0JSZG1 | P199: 2044-09-15 | Q199: 2044-09-15 | R199: 7736 | S199: 0 | T199: 7702070139*
A200: RU000A0JTXQ3 | B200: ВТБ 4ИПБ | C200: ВТБ РФ | D200: 10000 | E200: 10000 | F200: 10000 | G200: 10000 | H200: 0 | I200: 84630 | J200: 84630 | K200: -1185 | L200: 281 | M200: MC0003300000 | N200: RU000A0JTXQ3 | P200: 2044-09-01 | Q200: 2044-09-01 | R200: 13726 | S200: 0 | T200: 7702070139*
... 1179 more rows

Sheet PortHedge
E1: Изменение дюрации портфеля облигаций
A2: Дата | B2: =TODAY() -> 2021-12-15 | O2: ADMITTEDQOUTE | P2: =MATCH(O2,MD!$1:$1,0) -> 
O3: MARKETPRICE2 | P3: =MATCH(O3,MD!$1:$1,0) -> 5
B4: Стоимость, млн | C4: DV01 Long, руб/бп | D4: DV01 Short | E4: DV01, Портфель | F4: DV01, фьючерсы | G4: DV01,свопы | H4: DV01, Портфель + фьючерсы/свопы | I4: Изменение дюрации портфеля, % | J4: Риск ставки, бп | K4: P&L, руб | L4: Дюрация портфеля, лет | M4: Дюрация портфель+фьючерсы/свопы, лет | O4: MARKETPRICE3 | P4: =MATCH(O4,MD!$1:$1,0) -> 19
A5: Всего | B5: =SUM(B6:B11) -> 1784.2895 | C5: =SUM(C6:C11) -> -351220 | D5: =SUM(D6:D11) -> 0 | E5: =C5+D5 -> -351220 | F5: =SUM(F6:F11) -> 384014.4212 | G5: =SUM(G6:G11) -> 100498.6218 | H5: =E5+F5+G5 -> 133293.043 | I5: =IF(ABS(E5)>0,(H5-E5)/E5,0) -> -1.379514387 | K5: =SUM(K6:K11) -> -20583294.15 | L5: =SUMPRODUCT(B20:B289,J20:J289,R20:R289)/SUMPRODUCT(B20:B289,R20:R289) -> 2.013885825 | M5: =(SUMPRODUCT(B20:B289,J20:J289,R20:R289)+SUMPRODUCT(U20:U24,AC20:AC24,AD20:AD24))/SUMPRODUCT(B20:B289,R20:R289) -> -0.2418330583 | O5: CLOSEPRICE | P5: =MATCH(O5,MD!$1:$1,0) -> 6
A6: < 1 года | B6: =SUMIF($G$20:INDEX($G:$G,ROWS($G:$G)),"=1",$I$20:INDEX($I:$I,ROWS($I:$I))) -> 649.59 | C6: =SUMIF($G$20:INDEX($G:$G,ROWS($G:$G)),"=1",$O$20:INDEX($O:$O,ROWS($O:$O))) -> -84060 | D6: =SUMIF($G$20:INDEX($G:$G,ROWS($G:$G)),"=1",$P$20:INDEX($P:$P,ROWS($P:$P))) -> 0 | E6: -84060 | F6: 0 | G6: =U29*Y29 -> 4579.439252 | H6: =E6+F6+G6 -> -79480.56075 | I6: -0.05447822094 | J6: -50 | K6: =H6*J6 -> 3974028.037 | O6: PRICE | P6: =MATCH(O6,MD!$1:$1,0) -> 7
A7: 1-3 года | B7: =SUMIF($G$20:INDEX($G:$G,ROWS($G:$G)),"=3",$I$20:INDEX($I:$I,ROWS($I:$I))) -> 923.1495 | C7: =SUMIF($G$20:INDEX($G:$G,ROWS($G:$G)),"=3",$O$20:INDEX($O:$O,ROWS($O:$O))) -> -187800 | D7: =SUMIF($G$20:INDEX($G:$G,ROWS($G:$G)),"=3",$P$20:INDEX($P:$P,ROWS($P:$P))) -> 0 | E7: -187800 | F7: =U20*Z20 -> 38064.08152 | G7: =U30*Y30 -> 37625.61601 | H7: =E7+F7+G7 -> -112110.3025 | I7: -0.4030335332 | J7: -50 | K7: 5605515.123
A8: 3-5 лет | B8: =SUMIF($G$20:INDEX($G:$G,ROWS($G:$G)),"=5",$I$20:INDEX($I:$I,ROWS($I:$I))) -> 211.55 | C8: =SUMIF($G$20:INDEX($G:$G,ROWS($G:$G)),"=5",$O$20:INDEX($O:$O,ROWS($O:$O))) -> -79360 | D8: =SUMIF($G$20:INDEX($G:$G,ROWS($G:$G)),"=5",$P$20:INDEX($P:$P,ROWS($P:$P))) -> 0 | E8: -79360 | F8: =U21*Z21 -> 69088.82877 | G8: =U31*Y31 -> 58293.56654 | H8: =E8+F8+G8 -> 48022.39531 | I8: -1.605120909 | J8: -50 | K8: -2401119.766 | O8: CURRENT METH | P8: =MATCH(I17,MD!$1:$1,0) -> 5
A9: 5-7 лет | B9: =SUMIF($G$20:INDEX($G:$G,ROWS($G:$G)),"=7",$I$20:INDEX($I:$I,ROWS($I:$I))) -> 0 | C9: =SUMIF($G$20:INDEX($G:$G,ROWS($G:$G)),"=7",$O$20:INDEX($O:$O,ROWS($O:$O))) -> 0 | D9: =SUMIF($G$20:INDEX($G:$G,ROWS($G:$G)),"=7",$P$20:INDEX($P:$P,ROWS($P:$P))) -> 0 | E9: 0 | F9: 185581.8933 | H9: 185581.8933 | I9: 0 | J9: -125 | K9: -23197736.66
A10: 7-10 лет | B10: =SUMIF($G$20:INDEX($G:$G,ROWS($G:$G)),"=10",$I$20:INDEX($I:$I,ROWS($I:$I))) -> 0 | C10: =SUMIF($G$20:INDEX($G:$G,ROWS($G:$G)),"=10",$O$20:INDEX($O:$O,ROWS($O:$O))) -> 0 | D10: =SUMIF($G$20:INDEX($G:$G,ROWS($G:$G)),"=10",$P$20:INDEX($P:$P,ROWS($P:$P))) -> 0 | E10: 0 | F10: 0 | H10: 0 | I10: 0 | J10: -50 | K10: 0
A11: 10-15 лет | B11: =SUMIF($G$20:INDEX($G:$G,ROWS($G:$G)),"=15",$I$20:INDEX($I:$I,ROWS($I:$I))) -> 0 | C11: =SUMIF($G$20:INDEX($G:$G,ROWS($G:$G)),"=15",$O$20:INDEX($O:$O,ROWS($O:$O))) -> 0 | D11: =SUMIF($G$20:INDEX($G:$G,ROWS($G:$G)),"=15",$P$20:INDEX($P:$P,ROWS($P:$P))) -> 0 | E11: 0 | F11: 91279.61762 | H11: 91279.61762 | I11: 0 | J11: -50 | K11: -4563980.881
M12: 50
H13: Желаемое изменение дюрации (DVO1) | I13: =(M12-100)*0.01 -> -0.5 | M13: Доля свопов
M14: 50
A15: =IF(SUM($N$20:INDEX($N:$N,ROWS($N:$N)))>0,"ВНИМАНИЕ! Обнаружено "&SUM($N$20:INDEX($N:$N,ROWS($N:$N)))&" строк с неправильными данными","") -> 
A17: Рублевые облигации | I17: MARKETPRICE2 | T17: Фьючерсы ОФЗ
A18: ISIN | B18: Количество | C18: Выпуск | D18: Эмитент | E18: Погашение/Оферта | F18: Лет до погашения | G18: Группа по срокам | H18: YTM | I18: Стоимость поз, млн руб | J18: Дюрация, лет | K18: MD | L18: DV01 | M18: DV01 Total | N18: Ошибка | O18: DVLong | P18: DVShort | Q18: Notional | R18: Pdirty | T18: Контракт | U18: Свое количество фьючерсов | V18: Расчетное количество фьючерсов | W18: CTD | X18: CF CTD | Y18: DV short | Z18: DV01 | AA18: DV total | AB18: DV long | AC18: Дюрация | AD18: Цена
C19: =VLOOKUP(A19,MD!A:C,2,FALSE) ->  | D19: =VLOOKUP(A19,MD!A:C,3,FALSE) ->  | E19: =VLOOKUP(A19,MD!A:R,17,FALSE) ->  | F19: =(E19-$B$2)/365 ->  | G19: =IF(N19=1,0,IF(F19<1,1,IF(F19<3,3,IF(F19<5,5,IF(F19<7,7,IF(F19<10,10,15)))))) -> 0 | H19: =VLOOKUP(A19,MD!A:H,8,FALSE)/100 ->  | I19: =(VLOOKUP(A19,MD!A:T,$P$8,FALSE)*Q19/10000)*B19/1000000 ->  | J19: =VLOOKUP(A19,MD!A:I,9,FALSE)/10000 ->  | K19: =VLOOKUP(A19,MD!A:J,10,FALSE)/10000 ->  | L19: =VLOOKUP(A19,MD!A:K,11,FALSE)/10000 ->  | M19: =L19*B19 ->  | N19: =IF(OR(ISERROR(C19),ISERROR(L19),ISERROR(M19),ISERROR(H19),ISERROR(I19),ISERROR(Q19)),1,0) -> 1 | O19: =IF(M19<0,M19,0) ->  | P19: =IF(M19>0,M19,0) ->  | Q19: =VLOOKUP(A19,MD!A:R,18,FALSE)/100 ->  | R19: =VLOOKUP(A19,MD!A:G,7,FALSE)/10+VLOOKUP(A19,MD!A:L,12,FALSE)/100 ->  | Y19: =IF(AA19>0,AA19,0) -> 38064.08152 | AA19: =Z20*U20 -> 38064.08152 | AB19: =IF(AA19<0,AA19,0) -> 0
A20: RU000A0ZYDD9 | B20: 100000 | C20: =VLOOKUP(A20,MD!A:C,2,FALSE) -> ТрнфБО1P8 | D20: =VLOOKUP(A20,MD!A:C,3,FALSE) -> Транснефть_ | E20: =VLOOKUP(A20,MD!A:R,17,FALSE) -> 2025-10-09 | F20: =(E20-$B$2)/365 -> 3.819178082 | G20: =IF(N20=1,0,IF(F20<1,1,IF(F20<3,3,IF(F20<5,5,IF(F20<7,7,IF(F20<10,10,15)))))) -> 5 | H20: =VLOOKUP(A20,MD!A:H,8,FALSE)/100 -> 7.09 | I20: =(VLOOKUP(A20,MD!A:T,$P$8,FALSE)*Q20/10000)*B20/1000000 -> 102.76 | J20: =VLOOKUP(A20,MD!A:I,9,FALSE)/10000 -> 3.789 | K20: =VLOOKUP(A20,MD!A:J,10,FALSE)/10000 -> 3.5381 | L20: =VLOOKUP(A20,MD!A:K,11,FALSE)/10000 -> -0.3787 | M20: =L20*B20 -> -37870 | N20: =IF(OR(ISERROR(C20),ISERROR(L20),ISERROR(M20),ISERROR(H20),ISERROR(I20),ISERROR(Q20)),1,0) -> 0 | O20: =IF(M20<0,M20,0) -> -37870 | P20: =IF(M20>0,M20,0) -> 0 | Q20: =VLOOKUP(A20,MD!A:R,18,FALSE)/100 -> 1000 | R20: =VLOOKUP(A20,MD!A:G,7,FALSE)/10+VLOOKUP(A20,MD!A:L,12,FALSE)/100 -> 1070.35 | T20: =FutInfo!B2 -> OFZ2-3.22 | U20: -16024.75 | V20: =ROUND(E7/Z20,0)*$I$13*(100-$M$14)/100 -> -19765.75 | W20: =FutInfo!D2 -> ОФЗ 26222 | X20: =FutInfo!H2 -> 0.9826 | Y20: 38064.08152 | Z20: =INDEX(MD!K:K,MATCH(W20,MD!B:B, 0))/X20*10/10000 -> -2.375330755 | AA20: =Z20*U20 -> 38064.08152 | AB20: 0 | AC20: =FutInfo!J2 -> 2.635864034 | AD20: =FutInfo!G2 -> 9800
A21: RU000A0JXZB2 | B21: 100000 | C21: =VLOOKUP(A21,MD!A:C,2,FALSE) -> РЖД Б01P4R | D21: =VLOOKUP(A21,MD!A:C,3,FALSE) -> ОАО "РЖД" | E21: =VLOOKUP(A21,MD!A:R,17,FALSE) -> 2025-08-07 | F21: 3.646575342 | G21: 5 | H21: =VLOOKUP(A21,MD!A:H,8,FALSE)/100 -> 5.9 | I21: =(VLOOKUP(A21,MD!A:T,$P$8,FALSE)*Q21/10000)*B21/1000000 -> 108.79 | J21: =VLOOKUP(A21,MD!A:I,9,FALSE)/10000 -> 3.9068 | K21: =VLOOKUP(A21,MD!A:J,10,FALSE)/10000 -> 3.6891 | L21: =VLOOKUP(A21,MD!A:K,11,FALSE)/10000 -> -0.4149 | M21: -41490 | N21: 0 | O21: -41490 | P21: 0 | Q21: =VLOOKUP(A21,MD!A:R,18,FALSE)/100 -> 1000 | R21: =VLOOKUP(A21,MD!A:G,7,FALSE)/10+VLOOKUP(A21,MD!A:L,12,FALSE)/100 -> 1124.9 | T21: =FutInfo!B3 -> OFZ4-3.22 | U21: -22235.25 | V21: =ROUND(E8/Z21,0)*$I$13*(100-$M$14)/100 -> -6385.25 | W21: =FutInfo!D3 -> ОФЗ 26234 | X21: =FutInfo!H3 -> 0.8696 | Y21: 69088.82877 | Z21: =INDEX(MD!K:K,MATCH(W21,MD!B:B, 0))/X21*10/10000 -> -3.107175713 | AA21: =Z21*U21 -> 69088.82877 | AB21: 0 | AC21: =FutInfo!J3 -> 3.760349586 | AD21: =FutInfo!G3 -> 10129
A22: RU000A0ZYFB8 | B22: 100000 | C22: =VLOOKUP(A22,MD!A:C,2,FALSE) -> КрасЯрКр14 | D22: =VLOOKUP(A22,MD!A:C,3,FALSE) -> минфин края | E22: =VLOOKUP(A22,MD!A:R,17,FALSE) -> 2024-10-31 | F22: 2.879452055 | G22: 3 | H22: =VLOOKUP(A22,MD!A:H,8,FALSE)/100 -> 6.13 | I22: =(VLOOKUP(A22,MD!A:T,$P$8,FALSE)*Q22/10000)*B22/1000000 -> 105.78 | J22: =VLOOKUP(A22,MD!A:I,9,FALSE)/10000 -> 2.8 | K22: =VLOOKUP(A22,MD!A:J,10,FALSE)/10000 -> 2.6382 | L22: =VLOOKUP(A22,MD!A:K,11,FALSE)/10000 -> -0.2796 | M22: -27960 | N22: 0 | O22: -27960 | P22: 0 | Q22: =VLOOKUP(A22,MD!A:R,18,FALSE)/100 -> 1000 | R22: =VLOOKUP(A22,MD!A:G,7,FALSE)/10+VLOOKUP(A22,MD!A:L,12,FALSE)/100 -> 1059.82 | T22: =FutInfo!B4 -> OFZ6-3.22 | U22: -45671.5 | V22: =ROUND(E9/Z22,0)*$I$13 -> 0 | W22: =FutInfo!D4 -> ОФЗ 26219 | X22: =FutInfo!H4 -> 0.8958 | Y22: 185581.8933 | Z22: =INDEX(MD!K:K,MATCH(W22,MD!B:B, 0))/X22*10/10000 -> -4.06340701 | AA22: =Z22*U22 -> 185581.8933 | AB22: 0 | AC22: =FutInfo!J4 -> 4.454119223 | AD22: =FutInfo!G4 -> 10807
A23: RU000A0ZYCM2 | B23: 100000 | C23: =VLOOKUP(A23,MD!A:C,2,FALSE) -> КрасЯрКр13 | D23: =VLOOKUP(A23,MD!A:C,3,FALSE) -> минфин края | E23: =VLOOKUP(A23,MD!A:R,17,FALSE) -> 2024-10-03 | F23: 2.802739726 | G23: 3 | H23: =VLOOKUP(A23,MD!A:H,8,FALSE)/100 -> 6.07 | I23: =(VLOOKUP(A23,MD!A:T,$P$8,FALSE)*Q23/10000)*B23/1000000 -> 105.91 | J23: =VLOOKUP(A23,MD!A:I,9,FALSE)/10000 -> 2.7205 | K23: =VLOOKUP(A23,MD!A:J,10,FALSE)/10000 -> 2.5648 | L23: =VLOOKUP(A23,MD!A:K,11,FALSE)/10000 -> -0.2735 | M23: -27350 | N23: 0 | O23: -27350 | P23: 0 | Q23: =VLOOKUP(A23,MD!A:R,18,FALSE)/100 -> 1000 | R23: =VLOOKUP(A23,MD!A:G,7,FALSE)/10+VLOOKUP(A23,MD!A:L,12,FALSE)/100 -> 1066.45 | T23: =FutInfo!B5 -> OF10-3.22 | U23: 0 | V23: =IF(M14<100,ROUND(E10/Z23,0)*$I$13,0) -> 0 | W23: =FutInfo!D5 -> ОФЗ 26235 | X23: =FutInfo!H5 -> 0.9349 | Y23: 0 | Z23: =INDEX(MD!K:K,MATCH(W23,MD!B:B, 0))/X23*10/10000 -> -5.85303241 | AA23: =Z23*U23 -> 0 | AB23: 0 | AC23: =FutInfo!J5 -> 7.412557493 | AD23: =FutInfo!G5 -> 9014
A24: RU000A0ZYB40 | B24: 100000 | C24: =VLOOKUP(A24,MD!A:C,2,FALSE) -> МФКузбас17 | D24: =VLOOKUP(A24,MD!A:C,3,FALSE) -> МинфинКузбаc | E24: =VLOOKUP(A24,MD!A:R,17,FALSE) -> 2024-09-26 | F24: 2.783561644 | G24: 3 | H24: =VLOOKUP(A24,MD!A:H,8,FALSE)/100 -> 5.68 | I24: =(VLOOKUP(A24,MD!A:T,$P$8,FALSE)*Q24/10000)*B24/1000000 -> 78.855 | J24: =VLOOKUP(A24,MD!A:I,9,FALSE)/10000 -> 2.0575 | K24: =VLOOKUP(A24,MD!A:J,10,FALSE)/10000 -> 1.9469 | L24: =VLOOKUP(A24,MD!A:K,11,FALSE)/10000 -> -0.1575 | M24: -15750 | N24: 0 | O24: -15750 | P24: 0 | Q24: =VLOOKUP(A24,MD!A:R,18,FALSE)/100 -> 750 | R24: =VLOOKUP(A24,MD!A:G,7,FALSE)/10+VLOOKUP(A24,MD!A:L,12,FALSE)/100 -> 1072.97 | T24: =FutInfo!B6 -> OF15-3.22 | U24: -11865 | V24: =IF(M14<100,ROUND(E11/Z24,0)*$I$13,0) -> 0 | W24: =FutInfo!D6 -> ОФЗ 26233 | X24: =FutInfo!H6 -> 0.8787 | Y24: 91279.61762 | Z24: =INDEX(MD!K:K,MATCH(W24,MD!B:B, 0))/X24*10/10000 -> -7.693183111 | AA24: =Z24*U24 -> 91279.61762 | AB24: 0 | AC24: =FutInfo!J6 -> 9.900990099 | AD24: =FutInfo!G6 -> 9310
A25: RU000A0JXYS9 | B25: 100000 | C25: =VLOOKUP(A25,MD!A:C,2,FALSE) -> КраснодКр1 | D25: =VLOOKUP(A25,MD!A:C,3,FALSE) -> ДФБККраснКр | E25: =VLOOKUP(A25,MD!A:R,17,FALSE) -> 2024-08-09 | F25: 2.652054795 | G25: 3 | H25: =VLOOKUP(A25,MD!A:H,8,FALSE)/100 -> 7.01 | I25: =(VLOOKUP(A25,MD!A:T,$P$8,FALSE)*Q25/10000)*B25/1000000 -> 104.03 | J25: =VLOOKUP(A25,MD!A:I,9,FALSE)/10000 -> 2.2328 | K25: =VLOOKUP(A25,MD!A:J,10,FALSE)/10000 -> 2.0866 | L25: =VLOOKUP(A25,MD!A:K,11,FALSE)/10000 -> -0.2189 | M25: -21890 | N25: 0 | O25: -21890 | P25: 0 | Q25: =VLOOKUP(A25,MD!A:R,18,FALSE)/100 -> 1000 | R25: =VLOOKUP(A25,MD!A:G,7,FALSE)/10+VLOOKUP(A25,MD!A:L,12,FALSE)/100 -> 1049.16
A26: RU000A0JXTW1 | B26: 300000 | C26: =VLOOKUP(A26,MD!A:C,2,FALSE) -> БелгОб2017 | D26: =VLOOKUP(A26,MD!A:C,3,FALSE) -> ПравБелгорОб | E26: =VLOOKUP(A26,MD!A:R,17,FALSE) -> 2024-06-11 | F26: 2.490410959 | G26: 3 | H26: =VLOOKUP(A26,MD!A:H,8,FALSE)/100 -> 6.72 | I26: =(VLOOKUP(A26,MD!A:T,$P$8,FALSE)*Q26/10000)*B26/1000000 -> 263.364 | J26: =VLOOKUP(A26,MD!A:I,9,FALSE)/10000 -> 1.7863 | K26: =VLOOKUP(A26,MD!A:J,10,FALSE)/10000 -> 1.6738 | L26: =VLOOKUP(A26,MD!A:K,11,FALSE)/10000 -> -0.1504 | M26: -45120 | N26: 0 | O26: -45120 | P26: 0 | Q26: =VLOOKUP(A26,MD!A:R,18,FALSE)/100 -> 850 | R26: =VLOOKUP(A26,MD!A:G,7,FALSE)/10+VLOOKUP(A26,MD!A:L,12,FALSE)/100 -> 1057.03
A27: RU000A0JXSD3 | B27: 100000 | C27: =VLOOKUP(A27,MD!A:C,2,FALSE) -> ВлгОб35007 | D27: =VLOOKUP(A27,MD!A:C,3,FALSE) -> Облфин | E27: =VLOOKUP(A27,MD!A:R,17,FALSE) -> 2024-06-02 | F27: 2.465753425 | G27: 3 | H27: =VLOOKUP(A27,MD!A:H,8,FALSE)/100 -> 7.15 | I27: =(VLOOKUP(A27,MD!A:T,$P$8,FALSE)*Q27/10000)*B27/1000000 -> 91.944 | J27: =VLOOKUP(A27,MD!A:I,9,FALSE)/10000 -> 1.915 | K27: =VLOOKUP(A27,MD!A:J,10,FALSE)/10000 -> 1.7872 | L27: =VLOOKUP(A27,MD!A:K,11,FALSE)/10000 -> -0.1656 | M27: -16560 | N27: 0 | O27: -16560 | P27: 0 | Q27: =VLOOKUP(A27,MD!A:R,18,FALSE)/100 -> 900 | R27: =VLOOKUP(A27,MD!A:G,7,FALSE)/10+VLOOKUP(A27,MD!A:L,12,FALSE)/100 -> 1029.27 | T27: Процентные свопы
A28: RU000A0JXT41 | B28: 100000 | C28: =VLOOKUP(A28,MD!A:C,2,FALSE) -> СамарОбл13 | D28: =VLOOKUP(A28,MD!A:C,3,FALSE) -> МинУфСамарОб | E28: =VLOOKUP(A28,MD!A:R,17,FALSE) -> 2024-05-31 | F28: 2.460273973 | G28: 3 | H28: =VLOOKUP(A28,MD!A:H,8,FALSE)/100 -> 5.59 | I28: =(VLOOKUP(A28,MD!A:T,$P$8,FALSE)*Q28/10000)*B28/1000000 -> 68.5165 | J28: =VLOOKUP(A28,MD!A:I,9,FALSE)/10000 -> 2.1232 | K28: =VLOOKUP(A28,MD!A:J,10,FALSE)/10000 -> 2.0108 | L28: =VLOOKUP(A28,MD!A:K,11,FALSE)/10000 -> -0.1384 | M28: -13840 | N28: 0 | O28: -13840 | P28: 0 | Q28: =VLOOKUP(A28,MD!A:R,18,FALSE)/100 -> 650 | R28: =VLOOKUP(A28,MD!A:G,7,FALSE)/10+VLOOKUP(A28,MD!A:L,12,FALSE)/100 -> 1058.81 | T28: Своп | U28: Свой объем позиции, млн | V28: Расчетный Объем позиции, млн | W28: Срок, лет | X28: Ставка | Y28: DV01 | Z28: Сделка
A29: RU000A0JXQK2 | B29: 100000 | C29: =VLOOKUP(A29,MD!A:C,2,FALSE) -> Роснфт1P4 | D29: =VLOOKUP(A29,MD!A:C,3,FALSE) -> Роснефть | E29: =VLOOKUP(A29,MD!A:R,17,FALSE) -> 2023-04-27 | F29: 1.364383562 | G29: 3 | H29: =VLOOKUP(A29,MD!A:H,8,FALSE)/100 -> 6.29 | I29: =(VLOOKUP(A29,MD!A:T,$P$8,FALSE)*Q29/10000)*B29/1000000 -> 104.75 | J29: =VLOOKUP(A29,MD!A:I,9,FALSE)/10000 -> 1.8986 | K29: =VLOOKUP(A29,MD!A:J,10,FALSE)/10000 -> 1.7862 | L29: =VLOOKUP(A29,MD!A:K,11,FALSE)/10000 -> -0.1933 | M29: -19330 | N29: 0 | O29: -19330 | P29: 0 | Q29: =VLOOKUP(A29,MD!A:R,18,FALSE)/100 -> 1000 | R29: =VLOOKUP(A29,MD!A:G,7,FALSE)/10+VLOOKUP(A29,MD!A:L,12,FALSE)/100 -> 1082.14 | T29: IRS1Y | U29: -49 | V29: =IF(M14>0,ROUND(E6/Y29*$I$13,0),0) -> -450 | W29: 1 | X29: 0.07 | Y29: =PV(X29,W29,0.01%)*10^6 -> -93.45794393 | Z29: =IF(V29>0,"ОТДАЮ MOSPRIME 3M/ПОЛУЧАЮ ФИКС","ПОЛУЧАЮ MOSPRIME 3M/ОТДАЮ ФИКС") -> ПОЛУЧАЮ MOSPRIME 3M/ОТДАЮ ФИКС
A30: RU000A0ZYFC6 | B30: 100000 | C30: =VLOOKUP(A30,MD!A:C,2,FALSE) -> МТС 001P-3 | D30: =VLOOKUP(A30,MD!A:C,3,FALSE) -> МТС | E30: =VLOOKUP(A30,MD!A:R,17,FALSE) -> 2022-11-03 | F30: 0.8849315068 | G30: 1 | H30: =VLOOKUP(A30,MD!A:H,8,FALSE)/100 -> 6.14 | I30: =(VLOOKUP(A30,MD!A:T,$P$8,FALSE)*Q30/10000)*B30/1000000 -> 104.29 | J30: =VLOOKUP(A30,MD!A:I,9,FALSE)/10000 -> 1.5041 | K30: =VLOOKUP(A30,MD!A:J,10,FALSE)/10000 -> 1.417 | L30: =VLOOKUP(A30,MD!A:K,11,FALSE)/10000 -> -0.1494 | M30: -14940 | N30: 0 | O30: -14940 | P30: 0 | Q30: =VLOOKUP(A30,MD!A:R,18,FALSE)/100 -> 1000 | R30: =VLOOKUP(A30,MD!A:G,7,FALSE)/10+VLOOKUP(A30,MD!A:L,12,FALSE)/100 -> 1054.43 | T30: IRS3Y | U30: -146 | V30: =ROUND(E7/Y30*$I$13*$M$14/100,0) -> -182 | W30: 3 | X30: 0.08 | Y30: =PV(X30,W30,0.01%)*10^6 -> -257.7096987 | Z30: =IF(V30>0,"ОТДАЮ MOSPRIME 3M/ПОЛУЧАЮ ФИКС","ПОЛУЧАЮ MOSPRIME 3M/ОТДАЮ ФИКС") -> ПОЛУЧАЮ MOSPRIME 3M/ОТДАЮ ФИКС
A31: RU000A0ZYDQ1 | B31: 100000 | C31: =VLOOKUP(A31,MD!A:C,2,FALSE) -> НижгорОб12 | D31: =VLOOKUP(A31,MD!A:C,3,FALSE) -> Минфин НижОб | E31: =VLOOKUP(A31,MD!A:R,17,FALSE) -> 2022-10-23 | F31: 0.8547945205 | G31: 1 | H31: =VLOOKUP(A31,MD!A:H,8,FALSE)/100 -> 5.07 | I31: =(VLOOKUP(A31,MD!A:T,$P$8,FALSE)*Q31/10000)*B31/1000000 -> 31.2 | J31: =VLOOKUP(A31,MD!A:I,9,FALSE)/10000 -> 1.2438 | K31: =VLOOKUP(A31,MD!A:J,10,FALSE)/10000 -> 1.1838 | L31: =VLOOKUP(A31,MD!A:K,11,FALSE)/10000 -> -0.0373 | M31: -3730 | N31: 0 | O31: -3730 | P31: 0 | Q31: =VLOOKUP(A31,MD!A:R,18,FALSE)/100 -> 300 | R31: =VLOOKUP(A31,MD!A:G,7,FALSE)/10+VLOOKUP(A31,MD!A:L,12,FALSE)/100 -> 1042.88 | T31: IRS5Y | U31: -146 | V31: =ROUND(E8/Y31*$I$13*$M$14/100,0) -> -50 | W31: 5 | X31: 0.08 | Y31: -399.2710037 | Z31: =IF(V31>0,"ОТДАЮ MOSPRIME 3M/ПОЛУЧАЮ ФИКС","ПОЛУЧАЮ MOSPRIME 3M/ОТДАЮ ФИКС") -> ПОЛУЧАЮ MOSPRIME 3M/ОТДАЮ ФИКС
A32: RU000A0JXQ28 | B32: 100000 | C32: =VLOOKUP(A32,MD!A:C,2,FALSE) -> ФПК 1P-01 | D32: =VLOOKUP(A32,MD!A:C,3,FALSE) -> ФПК | E32: =VLOOKUP(A32,MD!A:R,17,FALSE) -> 2022-10-20 | F32: 0.8465753425 | G32: 1 | H32: =VLOOKUP(A32,MD!A:H,8,FALSE)/100 -> 6.69 | I32: =(VLOOKUP(A32,MD!A:T,$P$8,FALSE)*Q32/10000)*B32/1000000 -> 103.69 | J32: =VLOOKUP(A32,MD!A:I,9,FALSE)/10000 -> 1.4547 | K32: =VLOOKUP(A32,MD!A:J,10,FALSE)/10000 -> 1.3635 | L32: =VLOOKUP(A32,MD!A:K,11,FALSE)/10000 -> -0.1458 | M32: -14580 | N32: 0 | O32: -14580 | P32: 0 | Q32: =VLOOKUP(A32,MD!A:R,18,FALSE)/100 -> 1000 | R32: =VLOOKUP(A32,MD!A:G,7,FALSE)/10+VLOOKUP(A32,MD!A:L,12,FALSE)/100 -> 1069.63
A33: RU000A0ZYDS7 | B33: 100000 | C33: =VLOOKUP(A33,MD!A:C,2,FALSE) -> Газпнф1P3R | D33: =VLOOKUP(A33,MD!A:C,3,FALSE) -> Газпром нефт | E33: =VLOOKUP(A33,MD!A:R,17,FALSE) -> 2022-10-17 | F33: 0.8383561644 | G33: 1 | H33: =VLOOKUP(A33,MD!A:H,8,FALSE)/100 -> 5.89 | I33: =(VLOOKUP(A33,MD!A:T,$P$8,FALSE)*Q33/10000)*B33/1000000 -> 102.22 | J33: =VLOOKUP(A33,MD!A:I,9,FALSE)/10000 -> 1.4547 | K33: =VLOOKUP(A33,MD!A:J,10,FALSE)/10000 -> 1.3738 | L33: =VLOOKUP(A33,MD!A:K,11,FALSE)/10000 -> -0.1461 | M33: -14610 | N33: 0 | O33: -14610 | P33: 0 | Q33: =VLOOKUP(A33,MD!A:R,18,FALSE)/100 -> 1000 | R33: =VLOOKUP(A33,MD!A:G,7,FALSE)/10+VLOOKUP(A33,MD!A:L,12,FALSE)/100 -> 1063.77
A34: RU000A0ZYC98 | B34: 100000 | C34: =VLOOKUP(A34,MD!A:C,2,FALSE) -> МегафнБ1P3 | D34: =VLOOKUP(A34,MD!A:C,3,FALSE) -> МегафонПАО | E34: =VLOOKUP(A34,MD!A:R,17,FALSE) -> 2022-10-03 | F34: 0.8 | G34: 1 | H34: =VLOOKUP(A34,MD!A:H,8,FALSE)/100 -> 6.13 | I34: =(VLOOKUP(A34,MD!A:T,$P$8,FALSE)*Q34/10000)*B34/1000000 -> 102.6 | J34: =VLOOKUP(A34,MD!A:I,9,FALSE)/10000 -> 1.4191 | K34: =VLOOKUP(A34,MD!A:J,10,FALSE)/10000 -> 1.3372 | L34: =VLOOKUP(A34,MD!A:K,11,FALSE)/10000 -> -0.1421 | M34: -14210 | N34: 0 | O34: -14210 | P34: 0 | Q34: =VLOOKUP(A34,MD!A:R,18,FALSE)/100 -> 1000 | R34: =VLOOKUP(A34,MD!A:G,7,FALSE)/10+VLOOKUP(A34,MD!A:L,12,FALSE)/100 -> 1062.78 | T34: Порядок действий:
A35: RU000A0JXVE5 | B35: 100000 | C35: =VLOOKUP(A35,MD!A:C,2,FALSE) -> СИНХФБО1P1 | D35: =VLOOKUP(A35,MD!A:C,3,FALSE) -> СИНХ-Финанс | E35: =VLOOKUP(A35,MD!A:R,17,FALSE) -> 2022-07-05 | F35: 0.5534246575 | G35: 1 | H35: =VLOOKUP(A35,MD!A:H,8,FALSE)/100 -> 6.81 | I35: =(VLOOKUP(A35,MD!A:T,$P$8,FALSE)*Q35/10000)*B35/1000000 -> 103.18 | J35: =VLOOKUP(A35,MD!A:I,9,FALSE)/10000 -> 1.2191 | K35: =VLOOKUP(A35,MD!A:J,10,FALSE)/10000 -> 1.1414 | L35: =VLOOKUP(A35,MD!A:K,11,FALSE)/10000 -> -0.1193 | M35: -11930 | N35: 0 | O35: -11930 | P35: 0 | Q35: =VLOOKUP(A35,MD!A:R,18,FALSE)/100 -> 1000 | R35: =VLOOKUP(A35,MD!A:G,7,FALSE)/10+VLOOKUP(A35,MD!A:L,12,FALSE)/100 -> 1045.56 | T35: 1. | U35: Нажать кнопку "Загрузить список торгуемых бондов" чтобы обновить информацию
A36: RU000A0JXPN8 | B36: 100000 | C36: =VLOOKUP(A36,MD!A:C,2,FALSE) -> Ростел1P2R | D36: =VLOOKUP(A36,MD!A:C,3,FALSE) -> РОСТЕЛЕКОМ_ | E36: =VLOOKUP(A36,MD!A:R,17,FALSE) -> 2022-04-20 | F36: 0.3452054795 | G36: 1 | H36: =VLOOKUP(A36,MD!A:H,8,FALSE)/100 -> 6.44 | I36: =(VLOOKUP(A36,MD!A:T,$P$8,FALSE)*Q36/10000)*B36/1000000 -> 102.41 | J36: =VLOOKUP(A36,MD!A:I,9,FALSE)/10000 -> 1.0109 | K36: =VLOOKUP(A36,MD!A:J,10,FALSE)/10000 -> 0.9497 | L36: =VLOOKUP(A36,MD!A:K,11,FALSE)/10000 -> -0.1006 | M36: -10060 | N36: 0 | O36: -10060 | P36: 0 | Q36: =VLOOKUP(A36,MD!A:R,18,FALSE)/100 -> 1000 | R36: =VLOOKUP(A36,MD!A:G,7,FALSE)/10+VLOOKUP(A36,MD!A:L,12,FALSE)/100 -> 1060.13 | T36: 2. | U36: Нажать кнопку "Очистить портфель" для удаления модельного портфеля

Sheet TempPort
A1: RU000A0ZYDD9 | B1: 100000
A2: RU000A0JXZB2 | B2: 100000
A3: RU000A0ZYFB8 | B3: 100000
A4: RU000A0ZYCM2 | B4: 100000
A5: RU000A0ZYB40 | B5: 100000
A6: RU000A0JXYS9 | B6: 100000
A7: RU000A0JXTW1 | B7: 300000
A8: RU000A0JXSD3 | B8: 100000
A9: RU000A0JXT41 | B9: 100000
A10: RU000A0JXQK2 | B10: 100000
A11: RU000A0ZYFC6 | B11: 100000
A12: RU000A0ZYDQ1 | B12: 100000
A13: RU000A0JXQ28 | B13: 100000
A14: RU000A0ZYDS7 | B14: 100000
A15: RU000A0ZYC98 | B15: 100000
A16: RU000A0JXVE5 | B16: 100000
A17: RU000A0JXPN8 | B17: 100000
A18: RU000A0JXU71 | B18: 100000
A19: RU000A0JXRW5 | B19: 100000
A20: RU000A0JXM97 | B20: 100000
A21: RU000A0JXQD7 | B21: 100000
A22: RU000A0ZYEB1 | B22: 100000
A23: RU000A0JXMQ8 | B23: 100000
A24: RU000A0JXS75 | B24: 100000
A25: RU000A0JXRN4 | B25: 100000
A26: RU000A0JXD07 | B26: 100000
A27: RU000A0JXRP9 | B27: 100000
A28: RU000A0JXFM1 | B28: 250000
